Workbook

Sheet ISS
A1: CODIGO | B1: PROCEDIMIENTO | C1: UVR
A2: 13106 | B2: DRENAJE DE ESPACIO SUBDURAL, POR DERIVACION SUBDURO PERITONEAL | C2: 210
A3: 22101 | B3: DERIVACION DE VENTRICULO A CISTERNA MAGNA | C3: 210
A4: 22202 | B4: DERIVACION VENTRICULAR A ESPACIO SUBARACNOIDEO CERVICAL [TORKILSEN] | C4: 210
A5: 22300 | B5: COLOCACION DE CATETER VENTRICULO PERITONEAL, SIN VALVULA SOD | C5: 210
A6: 23201 | B6: DERIVACION VENTRICULOATRIAL | C6: 210
A7: 23401 | B7: VENTRICULOPERITONEOSTOMIA | C7: 210
A8: 23402 | B8: DERIVACION CISTO PERITONEAL [QUISTE VENTRICULAR A PERITONEO] | C8: 210
A9: 23500 | B9: DERIVACION VENTRICULAR AL APARATO URINARIO SOD | C9: 210
A10: 549003 | B10: COLOCACION DE CATETERES PARA DERIVACION VENTRICULOPERITONEAL Y PERITONEOVENTRICULAR | C10: 210
A11: 13105 | B11: DRENAJE DE ESPACIO SUBARACNOIDEO, POR DERIVACION CISTO PERITONEAL | C11: 210
A12: 24100 | B12: IRRIGACION DE DERIVACION VENTRICULAR SOD | C12: 120
A13: 24201 | B13: REEMPLAZO PARCIAL DE DERIVACION | C13: 120
A14: 24202 | B14: REEMPLAZO TOTAL DE DERIVACION | C14: 140
A15: 24300 | B15: RETIRO DE DERIVACION SOD | C15: 125
A16: 37100 | B16: DERIVACION SIRINGO PERITONEAL ESPINAL SOD | C16: 190
A17: 37200 | B17: DERIVACION SIRINGO SUBDURAL ESPINAL SOD | C17: 190
A18: 37300 | B18: DERIVACION LUMBO PERITONEAL SOD | C18: 190
A19: 37400 | B19: DERIVACION LUMBAR EXTERNA SOD | C19: 190
A20: 37500 | B20: DERIVACION SIRINGO PLEURAL ESPINAL SOD | C20: 190
A21: 22201 | B21: COLOCACION DE CATETER VENTRICULAR AL EXTERIOR | C21: 150
A22: 28302 | B22: COLOCACION EPIDURAL DEL ELECTRODO DE NEUROESTIMULACION INTRACRANEAL | C22: 290
A23: 28304 | B23: IMPLANTACION DE RECEPTOR ELECTROENCEFALOGRAFICO POR TREPANACION | C23: 290
A24: 28303 | B24: IMPLANTACION PARENQUIMATOSA DEL ELECTRODO DE NEUROESTIMULACION INTRACRANEAL | C24: 230
A25: 19100 | B25: LOBECTOMIA POR CRANEOTOMIA SOD | C25: 375
A26: 19200 | B26: LOBECTOMIA POR CRANIECTOMIA SOD | C26: 375
A27: 18101 | B27: HEMISFERECTOMIA CEREBRAL POR CRANEOTOMIA | C27: 610
A28: 18201 | B28: HEMISFERECTOMIA CEREBELOSA POR CRANEOTOMIA SUBOCCIPITAL | C28: 610
A29: 44101 | B29: DESCOMPRESION NEUROVASCULAR DE NERVIO TRIGEMINAL, POR CRANEOTOMIA SUBOCCIPITAL | C29: 355
A30: 44203 | B30: DESCOMPRESION NEUROVASCULAR DE NERVIOS IX Y X | C30: 355
A31: 44204 | B31: DESCOMPRESION NEUROVASCULAR DE NERVIO ACUSTICO VESTIBULAR | C31: 355
A32: 44205 | B32: DESCOMPRESION INTRACANALICULAR DE NERVIO FACIAL | C32: 355
A33: 44206 | B33: DESCOMPRESION NEUROVASCULAR DE NERVIO FACIAL , POR CRANEOTOMIA SUBOCCIPITAL | C33: 355
A34: 44207 | B34: DESCOMPRESION DE NERVIO FACIAL INTRATEMPORAL VIA TRANSLABERINTICA | C34: 355
A35: 44208 | B35: DESCOMPRESION DE NERVIO FACIAL INTRATEMPORAL VIA TRANSMASTOIDEA | C35: 355
A36: 13202 | B36: SECCION DE TEJIDO CEREBRAL (TRACTOS CEREBRALES) , POR CRANEOTOMIA (132) | C36: 335
A37: 11304 | B37: BIOPSIA ESTEREOTAXICA DE CEREBRO (131) | C37: 250
A38: 17002 | B38: DRENAJE DE COLECCIONES INTRACEREBRALES , GUIADO POR ESTEREOTAXIA (2) | C38: 250
A39: 17005 | B39: DRENAJE DE COLECCIONES INTRACEREBRALES DE FOSA POSTERIOR , GUIADO POR ESTEREOTAXIA (2) | C39: 250
A40: 13201 | B40: SECCION DE TEJIDO CEREBRAL (TRACTOS CEREBRALES) POR ABLACION [TERMOLESION] ESTEREOTAXICA | C40: 420
A41: 14101 | B41: TALAMOTOMIA POR ESTEREOTAXIA [ESTIMULACION Y/O ABLACION DE UNO DE SUS NUCLEOS] | C41: 420
A42: 14201 | B42: PALIDOTOMIA POR ESTEREOTAXIA | C42: 420
A43: 28301 | B43: IMPLANTACION DE NEUROESTIMULADOR POR CRANEOTOMIA GUIADA POR ESTEREOTAXIA | C43: 320
A44: 28601 | B44: INJERTO INTRACEREBRAL DE TEJIDO SUPRARRENAL | C44: 320
A45: 12101 | B45: CRANEALIZACION DE SENO FRONTAL | C45: 230
A46: 21101 | B46: CORRECCION DE DESGARRO DURAL POST TRAUMATICO EN BOVEDA CRANEANA, POR CRANEOTOMIA | C46: 135
A47: 21102 | B47: CORRECCION DE DESGARRO DURAL POST TRAUMATICO EN BOVEDA CRANEANA, CON PLASTIA DURAL | C47: 135
A48: 21103 | B48: CORRECCION DE DESGARRO DURAL EN BASE DE CRANEO, POR CRANEOTOMIA | C48: 135
A49: 21104 | B49: CORRECCION DE DESGARRO DURAL EN BASE DE CRANEO, CON PLASTIA AUTOLOGA O HETEROLOGA, POR CRANEOTOMIA | C49: 135
A50: 21202 | B50: CORRECCION FISTULA LCR EN BOVEDA CRANEANA, POR DUROPLASTIA | C50: 135
A51: 35401 | B51: PLASTIA O INJERTO DE MENINGE ESPINAL | C51: 135
A52: 20500 | B52: INSERCION O SUSTITUCION DE PLACA O MALLA CRANEAL (METALICA, ACRILICA) SOD | C52: 190
A53: 20601 | B53: CORRECCION DISPLASIA FIBROSA POR CRANEOPLASTIA | C53: 190
A54: 21201 | B54: CORRECCION FISTULA LCR EN BOVEDA CRANEANA, POR CRANEOTOMIA Y CRANEOPLASTIA | C54: 365
A55: 21204 | B55: CORRECCION FISTULA LCR EN BASE DE CRANEO ANTERIOR, POR VIA TRANSESFENOIDAL | C55: 325
A56: 21207 | B56: CORRECCION FISTULA LCR EN BASE DE CRANEO MEDIO, POR VIA TRANSESFENOIDAL | C56: 325
A57: 21203 | B57: CORRECCION FISTULA LCR EN BASE DE CRANEO ANTERIOR, POR VIA SUBFRONTAL | C57: 250
A58: 21206 | B58: CORRECCION FISTULA LCR EN BASE DE CRANEO MEDIO, POR CRANIECTOMIA | C58: 250
A59: 21208 | B59: CORRECCION FISTULA EN LCR EN BASE DE CRANEO POSTERIOR POR VIA SUBOCCIPITAL | C59: 250
A60: 11302 | B60: BIOPSIA ABIERTA ( CRANEOTOMIA) DE CEREBRO | C60: 210
A61: 11303 | B61: BIOPSIA DE CEREBRO POR TREPANACION | C61: 210
A62: 71300 | B62: BIOPSIA DE HIPOFISIS POR VIA TRANSFRONTAL SOD | C62: 210
A63: 71700 | B63: BIOPSIA DE GLANDULA PINEAL SOD | C63: 210
A64: 17209 | B64: DRENAJE DE QUISTE TUMORAL SUPRATENTORIAL | C64: 385
A65: 168401 | B65: DESCOMPRESIÓN DE ÓRBITA VIA TECHO DE ORBITA (TECNICA TRANSCRANEANA DE NAFZINGHER) | C65: 350
A66: 168402 | B66: DESCOMPRESIÓN DE ÓRBITA VIA LATERAL (TECNICA DE KROMLIEN) | C66: 275
A67: 168403 | B67: DESCOMPRESIÓN DE ÓRBITA VIA INFERIOR Y MEDIAL (TECNICA DE WALSHOUGURA)VIA TRANSMAXILAR ENDOSCOPICA | C67: 275
A68: 15104 | B68: CORRECCION DE DISPLASIA FIBROSA DEL CRANEO POR CRANIECTOMIA | C68: 315
A69: 28201 | B69: IMPLANTACION DE CATETER INTRACEREBRAL (3) | C69: 75
A70: 15101 | B70: RESECCION TUMOR OSEO, POR CRANEOTOMIA | C70: 85
A71: 15102 | B71: RESECCION TUMOR OSEO, POR CRANIECTOMIA | C71: 100
A72: 20401 | B72: CORRECCION DE DEFECTO OSEO PREEXISTENTE POR CRANEOPLASTIA, CON INJERTO AUTOLOGO O HETEROLOGO | C72: 240
A73: 16101 | B73: RESECCION TUMOR DE MENINGE CEREBRAL, POR CRANEOTOMIA | C73: 190
A74: 16102 | B74: RESECCION TUMOR DE MENINGE CEREBRAL, POR CRANIECTOMIA CON DUROPLASTIA Y CRANEOPLASTIA | C74: 305
A75: 16201 | B75: RESECCION TUMOR DE LA HOZ , POR CRANEOTOMIA Y PLASTIA | C75: 305
A76: 16301 | B76: RESECCION TUMOR DEL TENTORIO, POR CRANEOTOMIA | C76: 190
A77: 15201 | B77: RESECCION DE TUMOR DE LA BASE DEL CRANEO, FOSA ANTERIOR, POR VIA CRANEOFACIAL ANTERIOR | C77: 730
A78: 15203 | B78: RESECCION DE TUMOR DE LA BASE DEL CRANEO, FOSA ANTERIOR, POR VIA ANTEROLATERAL Y RINOTOMIA LATERAL | C78: 730
A79: 15204 | B79: RESECCION DE TUMOR DE LA BASE DEL CRANEO, FOSA ANTERIOR, POR VIA TRANSZIGOMATICA Y TRANSPALATAL | C79: 730
A80: 15302 | B80: RESECCION DE TUMOR DE LA BASE DEL CRANEO, FOSA MEDIA, POR ABORDAJE TRANSMAXILAR | C80: 730
A81: 15305 | B81: RESECCION DE TUMOR DE LA BASE DEL CRANEO, FOSA MEDIA, POR VIA SUBFRONTAL EXTENDIDA | C81: 730
A82: 15306 | B82: RESECCION DE TUMOR DE LA BASE DEL CRANEO, FOSA MEDIA POR VIA SUBTEMPORAL | C82: 700
A83: 15308 | B83: RESECCION DE TUMOR DE LA BASE DEL CRANEO, FOSA MEDIA , POR VIA SUBFRONTAL | C83: 730
A84: 15310 | B84: RESECCION DE TUMOR DE LA BASE DEL CRANEO, FOSA MEDIA , POR VIA TRANSESFENOIDAL | C84: 820
A85: 17202 | B85: RESECCION DE TUMOR SUPRATENTORIAL HEMISFERICO, POR CRANEOTOMIA OSTEOPLASTICA | C85: 815
A86: 17204 | B86: RESECCION DE TUMOR SUPRATENTORIAL HEMISFERICO, CON ESTIMULACION CORTICAL | C86: 700
A87: 17601 | B87: RESECCION DE LESIONES VENTRICULARES SUPRATENTORIALES, POR CRANEOTOMIA | C87: 700
A88: 15202 | B88: RESECCION DE TUMOR DE LA BASE DEL CRANEO, FOSA ANTERIOR, POR VIA CRANEOFACIAL ANTEROLATERAL | C88: 730
A89: 15301 | B89: RESECCION DE TUMOR DE LA BASE DEL CRANEO, FOSA MEDIA, POR CRANEOTOMIA FRONTAL Y OSTEOTOMIA FRONTO ETMOIDAL | C89: 730
A90: 15304 | B90: RESECCION DE TUMOR DE LA BASE DEL CRANEO, FOSA MEDIA, POR VIA SUBTEMPORAL Y OSTEOTOMIA ZIGOMATICA | C90: 730
A91: 15307 | B91: RESECCION DE TUMOR DE LA BASE DEL CRANEO, FOSA MEDIA, POR VIA PREAURICULAR INFRATENTORIAL Y CERVICOTOMIA | C91: 730
A92: 15309 | B92: RESECCION DE TUMOR DE LA BASE DEL CRANEO, FOSA MEDIA , POR ORBITOTOMIA LATERAL | C92: 730
A93: 17201 | B93: RESECCION DE TUMOR SUPRATENTORIAL HEMISFERICO, POR CRANEOTOMIA | C93: 730
A94: 15311 | B94: RESECCION DE TUMOR DE LA BASE DEL CRANEO, FOSA MEDIA , POR VIA TRANSESFENOIDAL ENDOSCOPICA (134) | C94: 685
A95: 71400 | B95: BIOPSIA DE HIPOFISIS POR VIA TRANSESFENOIDAL SOD (134) | C95: 635
A96: 76200 | B96: ESCISION PARCIAL DE HIPOFISIS VIA TRANSESFENOIDAL SOD (134) | C96: 635
A97: 76500 | B97: ESCISION TOTAL DE HIPOFISIS POR VIA TRANSESFENOIDAL SOD (134) | C97: 685
A98: 17401 | B98: RESECCION DE TUMOR DE LINEA MEDIA SUPRATENTORIAL, POR CRANEOTOMIA | C98: 945
A99: 17801 | B99: RESECCION DE LESIONES INTRAVENTICULARES DE LINEA MEDIA , POR CRANEOTOMIA | C99: 945
A100: 75300 | B100: ESCISION PARCIAL DE GLANDULA PINEAL SOD | C100: 945
A101: 75400 | B101: ESCISION TOTAL DE GLANDULA PINEAL (PINEALECTOMIA) SOD | C101: 945
A102: 76100 | B102: ESCISION PARCIAL DE HIPOFISIS POR VIA TRANSFRONTAL SOD | C102: 945
A103: 76400 | B103: ESCISION TOTAL DE HIPOFISIS POR VIA TRANSFRONTAL SOD | C103: 945
A104: 17301 | B104: RESECCION TUMOR INTRACEREBELOSO, POR CRANEOTOMIA SUBOCCIPITAL | C104: 945
A105: 17501 | B105: RESECCION DE TUMOR DE LINEA MEDIA INFRATENTORIAL, EXTRA AXIAL, POR CRANEOTOMIA SUBOCCIPITAL | C105: 945
A106: 17504 | B106: RESECCION DE LESIONES EXOFITICAS SOLIDAS EN TRONCO CEREBRAL ( EXTRA AXIALES), POR CRANEOTOMIA SUBOCCIPITAL | C106: 945
A107: 17505 | B107: RESECCION DE LESIONES EXOFITICAS SOLIDAS EN TRONCO CEREBRAL ( EXTRA AXIALES), POR CRANEOTOMIA DE FOSA MEDIA | C107: 945
A108: 17508 | B108: RESECCION DE LESIONES SOLIDAS O QUISTICAS INTRAAXIALES (TRONCO CEREBRAL), POR CRANEOTOMIA SUBOCCIPITAL | C108: 945
A109: 17509 | B109: RESECCION DE LESIONES SOLIDAS O QUISTICAS INTRAAXIALES (TRONCO CEREBRAL), POR CRANEOTOMIA SUBTEMPORAL | C109: 945
A110: 15401 | B110: RESECCION DE TUMOR DE LA BASE DEL CRANEO, FOSA POSTERIOR, POR VIA EXTREMO LATERAL | C110: 945
A111: 15402 | B111: RESECCION DE TUMOR DE LA BASE DEL CRANEO, FOSA POSTERIOR, POR VIA FRONTO ORBITO ETMOIDAL | C111: 945
A112: 15403 | B112: RESECCION DE TUMOR DE LA BASE DEL CRANEO, FOSA POSTERIOR, POR VIA SUBTEMPORAL PREAURICULAR INFRATEMPORAL Y CERVICOTOMIA TRANSMANDIBULAR | C112: 945
A113: 20201 | B113: ESQUIRLECTOMIA CRANEAL A TRAVES DE TREPANACION (1) | C113: 220
A114: 20202 | B114: DESBRIDAMIENTO DE FRACTURA COMPUESTA (CONMINUTA) DE CRANEO (1) | C114: 355
A115: 20204 | B115: REDUCCION DE FRACTURA COMPUESTA (CONMINUTA) DE CRANEO, CON PLASTIA DURAL Y LIMPIEZA HEMOSTASIA CEREBRAL (DESBRIDAMIENTO) EN UN SOLO TIEMPO | C115: 435
A116: 12100 | B116: INCISION Y DRENAJE DE SENO FRONTAL SOD * (371) | C116: 375
A117: 12401 | B117: DRENAJE DE ESPACIO EPIDURAL SUPRATENTORIAL, POR CRANEOTOMIA | C117: 375
A118: 12410 | B118: EXTRACCION DE CUERPO EXTRAÑO INTRACRANEAL POR CRANEOTOMIA | C118: 375
A119: 12502 | B119: DRENAJE DE COLECCIÓN EPIDURAL SUPRATENTORIAL, POR CRANIECTOMIA | C119: 555
A120: 12503 | B120: DRENAJE DE COLECCIÓN EPIDURAL FOSA POSTERIOR, POR CRANIECTOMIA | C120: 555
A121: 13103 | B121: DRENAJE DE ESPACIO SUBDURAL EN FOSA POSTERIOR, POR CRANIECTOMIA | C121: 555
A122: 13110 | B122: DRENAJE DE ESPACIO SUBDURAL CON REPARO DE SENOS DURALES ROTOS | C122: 455
A123: 12402 | B123: DRENAJE DE ESPACIO EPIDURAL FOSA POSTERIOR, POR CRANEOTOMIA | C123: 375
A124: 13101 | B124: DRENAJE DE ESPACIO SUBDURAL , POR CRANEOTOMIA | C124: 285
A125: 13102 | B125: DRENAJE DE ESPACIO SUBDURAL , POR TREPANACION | C125: 285
A126: 13104 | B126: DRENAJE DE ESPACIO SUBDURAL , POR DRENAJE EXTERNO | C126: 285
A127: 17001 | B127: DRENAJE DE COLECCIONES INTRACEREBRALES , POR CRANEOTOMIA | C127: 525
A128: 17303 | B128: DRENAJE DE QUISTE TUMORAL INFRATENTORIAL | C128: 590
A129: 17805 | B129: DRENAJE DE QUISTE TUMORAL DE LINEA MEDIA INTRAVENTICULAR | C129: 590
A130: 17004 | B130: DRENAJE DE COLECCIONES INTRACEREBRALES DE FOSA POSTERIOR POR CRANEOTOMIA SUBOCCIPITAL | C130: 690
A131: 12501 | B131: SECUESTRECTOMIA DE CRANEO, POR CRANIECTOMIA (171) | C131: 90
A132: 385104 | B132: OCLUSION, PINZAMIENTO O LIGADURA DE ARTERIA CEREBRAL MEDIA | C132: 350
A133: 385102 | B133: OCLUSION, PINZAMIENTO O LIGADURA DE ARTERIA CAROTIDA INTRACEREBRAL | C133: 350
A134: 385103 | B134: OCLUSION, PINZAMIENTO O LIGADURA DE CAROTIDA EN SENO CAVERNOSO | C134: 350
A135: 385111 | B135: OCLUSION, PINZAMIENTO O LIGADURA DE LESION EN ARTERIA VERTEBRAL | C135: 350
A136: 385101 | B136: OCLUSION, PINZAMIENTO O LIGADURA DE ARTERIAS DE CIRCULACION CEREBRAL ANTERIOR | C136: 685
A137: 385105 | B137: OCLUSION, PINZAMIENTO O LIGADURA DE VASOS MENINGEOS Y/O SENOS DURALES | C137: 685
A138: 385110 | B138: OCLUSION, PINZAMIENTO O LIGADURA DE ARTERIAS DE CIRCULACION CEREBRAL POSTERIOR | C138: 685
A139: 383101 | B139: RESECCION DE MALFORMACION ARTERIOVENOSA SUPRATENTORIAL SPETZLER I Y II | C139: 855
A140: 383102 | B140: RESECCION DE MALFORMACION ARTERIOVENOSA SUPRATENTORIAL SPETZLER III, IV y V | C140: 855
A141: 383103 | B141: RESECCION DE MALFORMACIONES ARTERIO VENOSAS DE LINEA MEDIA E INTRAVENTRICULAR | C141: 855
A142: 383104 | B142: RESECCION DE MALFORMACION ARTERIOVENOSA INFRATENTORIAL SPETZLER I Y II | C142: 880
A143: 383105 | B143: RESECCION DE MALFORMACION ARTERIOVENOSA INFRATENTORIAL SPETZLER III, IV y V | C143: 880
A144: 381203 | B144: ENDARTERECTOMIA DE CAROTIDA INTERNA PORCION CERVICAL (76) | C144: 365
A145: 380102 | B145: TROMBOEMBOLECTOMIA DE COMUNICANTE ANTERIOR (367) | C145: 560
A146: 380103 | B146: TROMBOEMBOLECTOMIA DE CAROTIDA INTERNA SUPRACLINOIDEA (367) | C146: 560
A147: 380104 | B147: TROMBOEMBOLECTOMIA DE OFTALMICA (367) | C147: 560
A148: 383201 | B148: RESECCION DE MALFORMACION ARTERIOVENOSA DE CUERO CABELLUDO (172) | C148: 165
A149: 20103 | B149: CORRECCION DE CRANEO ESTENOSIS MULTIPLE CON BRAQUICEFALIA, POR CRANICECTOMIA | C149: 380
A150: 20105 | B150: CORRECCION DE CRANEO ESTENOSIS CON ALTERACION CRANEO FACIAL COMPLEJA, POR CRANEOTOMIA | C150: 380
A151: 20203 | B151: REDUCCION DE FRACTURA CRANEAL (HUNDIMIENTO SIN COMPROMISO DE DURA) CON ESQUIRLECTOMIA Y CRANEOPLASTIA (1) | C151: 390
A152: 380102 | B152: TROMBOEMBOLECTOMIA DE COMUNICANTE ANTERIOR (367) | C152: 560
A153: 380103 | B153: TROMBOEMBOLECTOMIA DE CAROTIDA INTERNA SUPRACLINOIDEA (367) | C153: 560
A154: 380104 | B154: TROMBOEMBOLECTOMIA DE OFTALMICA (367) | C154: 560
A155: 383201 | B155: RESECCION DE MALFORMACION ARTERIOVENOSA DE CUERO CABELLUDO (172) | C155: 165
A156: 15404 | B156: RESECCION DE TUMOR DE LA BASE DEL CRANEO, FOSA POSTERIOR, POR VIA TRANSORAL | C156: 945
A157: 15405 | B157: RESECCION DE TUMOR DE LA BASE DEL CRANEO, FOSA POSTERIOR , POR VIA MAXILOTOMIA EXTENDIDA | C157: 945
A158: 15406 | B158: RESECCION DE TUMOR DE LA BASE DEL CRANEO, FOSA POSTERIOR, POR VIA TRANSLABERINTICA | C158: 945
A159: 15407 | B159: RESECCION DE TUMOR DE LA BASE DEL CRANEO, FOSA POSTERIOR, POR VIA TRANSCOCLEAR | C159: 945
A160: 15408 | B160: RESECCION DE TUMOR DE LA BASE DEL CRANEO, FOSA POSTERIOR, POR VIA FOSA MEDIA | C160: 945
A161: 15409 | B161: RESECCION DE TUMOR DE LA BASE DEL CRANEO, FOSA POSTERIOR , POR VIA SUBOCCIPITAL RETROMASTOIDEA | C161: 945
A162: 17701 | B162: RESECCION DE LESIONES VENTRICULARES INFRATENTORIALES, POR CRANEOTOMIA SUBOCCIPITAL | C162: 945
A163: 28202 | B163: IMPLANTACION DE DISPOSITIVO EXTRADURAL | C163: 75
A164: 28203 | B164: IMPLANTACION DE DISPOSITIVO INTRACEREBRAL ( ELECTRODOS, TRASDUCTORES DE PIC (3) | C164: 75
A165: 25000 | B165: IMPLANTE DE CATETER (INTRAVENTRICULAR, INTRACISTICO) CON RESERVORIO SUBCUTANEO SOD (173) | C165: 125
A166: 35103 | B166: CORRECCION DE MALFORMACION DE MEDULA ESPINAL, CON DESCOMPRESION VIA ANTERIOR | C166: 270
A167: 35107 | B167: CORRECCION DE MALFORMACION DE MEDULA ESPINAL, CON RESECCION DE CELE , DUROPLASTIA Y PLASTIA DE PIEL | C167: 345
A168: 35104 | B168: CORRECCION DE MALFORMACION DE MEDULA ESPINAL, CON FUSION OSEA E INJERTO AUTOLOGO O HETEROLOGO | C168: 435
A169: 35105 | B169: CORRECCION DE MALFORMACION DE MEDULA ESPINAL, CON RESECCION DE TABIQUE OSEO | C169: 270
A170: 35106 | B170: CORRECCION DE MALFORMACION DE MEDULA ESPINAL, CON SECCION DE FILUM TERMINALIS | C170: 275
A171: 35102 | B171: CORRECCION DE MALFORMACION DE MEDULA ESPINAL, CON MIELOTOMIA POSTERIOR | C171: 270
A172: 35108 | B172: CIERRE O LIGADURA DE COMUNICACION PERSISTENTE ENTRE PIEL Y MEDULA ESPINAL [SENO DERMICO] | C172: 155
A173: 934100 | B173: TRACCION ESPINAL CON EMPLEO DE DISPOSITIVO CRANEAL SOD | C173: 65
A174: 793930 | B174: REDUCCION ABIERTA DE FRACTURA DE ODONTOIDES VIA ANTERIOR CON INSTRUMENTACION SIMPLE (97) | C174: 425
A175: 793931 | B175: REDUCCION ABIERTA DE FRACTURA DE ODONTOIDES VIA ANTERIOR CON INSTRUMENTACION MODULAR (97) | C175: 425
A176: 778931 | B176: RESECCION DE APOFISIS ODONTOIDES POR ABORDAJE TRANSORAL (94) | C176: 450
A177: 792932 | B177: REDUCCIÓN ABIERTA FRACTURA SIN FIJACION DE COLUMNA CERVICAL VIA POSTERIOR | C177: 310
A178: 793932 | B178: REDUCCION ABIERTA DE FRACTURA DE ODONTOIDES VIA POSTERIOR CON INSTRUMENTACION SIMPLE (97) | C178: 330
A179: 793937 | B179: REDUCCION ABIERTA DE FRACTURA DE ODONTOIDES VIA POSTERIOR CON INSTRUMENTACION MODULAR (97) | C179: 330
A180: 793938 | B180: REDUCCION DE FRACTURA OCCIPITOCERVICAL VIA POSTERIOR CON INSTRUMENTACION SIMPLE (97) | C180: 330
A181: 793942 | B181: REDUCCION DE FRACTURA OCCIPITOCERVICAL VIA POSTERIOR CON INSTRUMENTACION MODULAR (97) | C181: 330
A182: 793943 | B182: REDUCCION DE FRACTURA COLUMNA CERVICAL EN C1 VIA POSTERIOR CON INSTRUMENTACION SIMPLE (97) | C182: 330
A183: 793946 | B183: REDUCCION DE FRACTURA COLUMNA CERVICAL EN C1 VIA POSTERIOR CON INSTRUMENTACION MODULAR (97) | C183: 330
A184: 793947 | B184: REDUCCION DE FRACTURA COLUMNA CERVICAL POR DEBAJO DE C2 VIA POSTERIOR CON INSTRUMENTACION SIMPLE (97) | C184: 330
A185: 792931 | B185: REDUCCION DE FRACTURA COLUMNA CERVICAL POR DEBAJO DE C2 VIA POSTERIOR CON INSTRUMENTACION MODULAR (97) | C185: 330
A186: 792935 | B186: REDUCCIÓN ABIERTA FRACTURA SIN FIJACION DE COLUMNA CERVICAL VIA ANTERIOR | C186: 360
A187: 793935 | B187: REDUCCIÓN ABIERTA FRACTURA SIN FIJACION DE COLUMNA TORACICA O LUMBAR VIA ANTERIOR | C187: 360
A188: 793936 | B188: REDUCCION DE FRACTURA OCCIPITOCERVICAL VIA ANTERIOR CON INSTRUMENTACION SIMPLE (97) | C188: 375
A189: 793940 | B189: REDUCCION DE FRACTURA OCCIPITOCERVICAL VIA ANTERIOR CON INSTRUMENTACION MODULAR (97) | C189: 375
A190: 793941 | B190: REDUCCION DE FRACTURA COLUMNA CERVICAL EN C1 VIA ANTERIOR CON INSTRUMENTACION SIMPLE (97) | C190: 375
A191: 793944 | B191: REDUCCION DE FRACTURA COLUMNA CERVICAL EN C1 VIA ANTERIOR CON INSTRUMENTACION MODULAR (97) | C191: 375
A192: 793945 | B192: REDUCCION DE FRACTURA COLUMNA CERVICAL POR DEBAJO DE C2 VIA ANTERIOR CON INSTRUMENTACION SIMPLE (97) | C192: 375
A193: 793950 | B193: REDUCCION DE FRACTURA COLUMNA CERVICAL POR DEBAJO DE C2 VIA ANTERIOR CON INSTRUMENTACION MODULAR (97) | C193: 375
A194: 793951 | B194: REDUCCIÓN ABIERTA DE FRACTURA DE COLUMNA VERTEBRAL [TORACICA, LUMBAR O SACRA] VIA ANTERIOR CON INSTRUMENTACION SIMPLE (97) | C194: 475
A195: 28400 | B195: REDUCCIÓN ABIERTA DE FRACTURA DE COLUMNA VERTEBRAL [TORACICA, LUMBAR O SACRA] VIA ANTERIOR CON INSTRUMENTACION MODULAR (97) | C195: 475
B196: COLOCACION DE TRACTOR CEFALICO [HALO CHALECO] SOD | C196: 55
A197: 28500 | B197: EXTRACCIÓN DE TRACTOR CEFALICO [HALO CHALECO] SOD | C197: 35
A198: 30101 | B198: EXTRACCION DE CUERPO EXTRAÑO DEL CANAL RAQUIDEO POR LAMINECTOMIA | C198: 220
A199: 30102 | B199: EXTRACCION DE CUERPO EXTRAÑO DEL CANAL RAQUIDEO POR HEMILAMINECTOMIA | C199: 220
A200: 30103 | B200: EXTRACCION DE CUERPO EXTRAÑO DEL CANAL RAQUIDEO POR LAMINOTOMIA | C200: 220
... 821 more rows

Sheet Hoja2
A1: CODIGO | B1: 15102
A2: PROCEDIMIENTOS | B2: =VLOOKUP(B1,ISS,2,FALSE) -> RESECCION TUMOR OSEO, POR CRANIECTOMIA
A3: UVR | B3: 100
A4: DERECHO DE SALA | B4: =IF(B3>450,1410*B3,VLOOKUP(B3,SALAS,2,TRUE)) -> 144645

Sheet TABLA
A1: HASTA UVR | B1: VALOR
A2: 20 | B2: 1280
A3: 30 | B3: 26790
A4: 40 | B4: 44270
A5: 50 | B5: 55605
A6: 60 | B6: 81176
A7: 70 | B7: 96520
A8: 80 | B8: 114830
A9: 90 | B9: 129655
A10: 100 | B10: 144645
A11: 110 | B11: 148545
A12: 130 | B12: 153075
A13: 150 | B13: 186410
A14: 170 | B14: 204700
A15: 200 | B15: 246970
A16: 230 | B16: 279405
A17: 260 | B17: 318255
A18: 290 | B18: 356455
A19: 320 | B19: 401105
A20: 350 | B20: 445560
A21: 380 | B21: 471015
A22: 410 | B22: 503460
A23: 450 | B23: 548020
A25: MATERIALES
A26: Hasta UVR | B26: Valor
A27: 20 | B27: 31000
A28: 30 | B28: 32005
A29: 40 | B29: 33110
A30: 50 | B30: 45305
A31: 60 | B31: 57410
A32: 70 | B32: 82315
A33: 80 | B33: 88610
A34: 90 | B34: 95015
A35: 100 | B35: 109205
A36: 110 | B36: 123310
A37: 130 | B37: 131115
A38: 150 | B38: 140120
A39: 170 | B39: 152910

Sheet INFORMACION
A1: INFORMACION PROCEDIMIENTO QUIRURGICOS
A2: INFORMACIN GENERAL | B2: Documento Nº
B3: Fecha
B4: Sala Nº | F4: =E4*'INFORMACION '!C163 -> 0
B5: Tiempo Empleado
A6: CARACTERISTICAS | B6: No de Cirugias | C6: 2
B7: No de Vias | C7: 2
B8: No de Cirujanos | C8: 2
B9: Bilateral | C9: NO
A10: PRIMERA CIRUGIA | B10: CUPS | C10: 28500
B11: DETALLE | C11: =VLOOKUP(C10,ISS,2,FALSE) -> EXTRACCIÓN DE TRACTOR CEFALICO [HALO CHALECO] SOD
B12: UVR | C12: =VLOOKUP(C10,ISS,3,FALSE) -> 35
A13: SEGUNDA CIRUGIA | B13: CUPS | C13: 373301
B14: DETALLE | C14: =IF(C6=1,"SOLO TIENE REGISTRADA UNA(1) CX",VLOOKUP(C13,ISS,2,FALSE)) -> ESCISION DE TUMOR DEL CORAZON (75)
B15: UVR | C15: =IF(C12<VLOOKUP(C13,ISS,3,FALSE),"LA PRIMERA CX ES DE MENOR VALOR, CORREGIR EL ORDEN",VLOOKUP(C13,ISS,3,FALSE)) -> LA PRIMERA CX ES DE MENOR VALOR, CORREGIR EL ORDEN
A16: RECARGO | B16: ISS-2001+ | C16: 0.35

Sheet HONORARIOS
A1: HONORARIOS PROFESIONALES
A2: HONORARIOS CIRUJANO
A3: CODIGO | B3: PROCEDIMIENTO | C3: UVR | D3: VALOR PLENO | E3: # vias | F3: #CIRUJANO | G3: % | H3: VALOR FACTURADO
A4: =[1]INFORMACION!C10 -> 16201 | B4: =VLOOKUP(A4,ISS,2,FALSE) -> RESECCION TUMOR DE LA HOZ , POR CRANEOTOMIA Y PLASTIA | C4: =VLOOKUP(A4,ISS,3,FALSE) -> 305 | D4: =C4*G15 -> 387350 | E4: =[1]INFORMACION!C6 -> 1 | F4: =[1]INFORMACION!C8 -> 1 | G4: 1 | H4: =(D4*G4)*(100%+[1]INFORMACION!C16) -> 522922.5
A5: 11302 | B5: =IF(A5="","",VLOOKUP(A5,ISS,2,FALSE)) -> BIOPSIA ABIERTA ( CRANEOTOMIA) DE CEREBRO | C5: =IF(A5="",0,VLOOKUP(A5,ISS,3,FALSE)) -> 210 | D5: % | E5: 266700 | G5: =IF([1]INFORMACION!C9="SI",75%,VLOOKUP(CONCATENATE([1]INFORMACION!C6,[1]INFORMACION!C7),CIRUGIA2,2,FALSE)) -> 0.75 | H5: =(E5*G5)*(100%+[1]INFORMACION!C16) -> 270033.75
B6: HONORARIOS ANESTESISTA
A7: CODIGO | B7: PROCEDIMIENTO | C7: UVR | D7: VALOR PLENO | E7: # vias | F7: #CIRUJANO | G7: % | H7: VALOR FACTURADO
C8: =VLOOKUP(A4,ISS,3,FALSE) -> 305 | D8: =C4*G16 -> 292800 | G8: 1 | H8: =(D8*G8)*(100%+[1]INFORMACION!C16) -> 395280
A9: CODIGO | B9: PROCEDIMIENTO | C9: UVR | D9: VALOR PLENO | E9: # vias | F9: #CIRUJANO | G9: % | H9: VALOR FACTURADO
C10: =VLOOKUP(A4,ISS,3,FALSE) -> 305 | D10: =C4*G17 -> 109800 | G10: 1 | H10: =(D10*G10)*(100%+[1]INFORMACION!C16) -> 148230
F14: UVR | G14: VALOR
F15: CIRUJANO | G15: 1270
F16: ANEST | G16: 960
F17: AYUDANTE | G17: 360
A18: CODIGO | B18: PROCEDIMIENTO | C18: UVR | D18: VALOR PLENO | E18: # vias | F18: #CIRUJANO | G18: % | H18: VALOR FACTURADO

Sheet DERECHO DE SALA
A1: DERCHO DE SALA
A3: CODIGO | B3: DETALLE | C3: UVR | D3: BILATERAL | E3: Vr BASE | F3: VALOR DERECHO DE SALA
A4: 383501 | B4: =VLOOKUP(A4,ISS,2,FALSE) -> RESECCION CON ANASTOMOSIS EN VASOS ESPINALES, SEGMENTO CERVICAL (77) | C4: =VLOOKUP(A4,ISS,3,FALSE) -> 585 | E4: =IF(C4>=450,C4*1410,VLOOKUP(C4,SALA,2,TRUE)) -> 824850 | F4: =E4*'INFORMACION '!C16+E4 -> 1113547.5
A5: 373301 | B5: =IFERROR(VLOOKUP(A5,ISS,2,FALSE),"") -> ESCISION DE TUMOR DEL CORAZON (75) | C5: =IFERROR(VLOOKUP(A5,ISS,3,FALSE),"") -> 400 | D5: ='INFORMACION '!C9 -> NO | E5: =IF(C5<=450,C5*1410,VLOOKUP(C5,SALA,2,TRUE)) -> 564000 | F5: =IF(D5="SI",(E5*75%)*(100%+'INFORMACION '!C16),(E5*50%)*(100%+'INFORMACION '!C16)) -> 380700

Sheet INSUMOS MEDICOS
A1: ss | B1: id | C1: URL | D1: ID Producto | E1: Tipo Producto | F1: Nombre Producto | G1: idTipoProducto | H1: VALOR
A2: http://www.mercadopublico.cl/TiendaFicha/Ficha?idProducto= | B2: 1266128 | C2: =CONCATENATE(A2,B2) -> http://www.mercadopublico.cl/TiendaFicha/Ficha?idProducto=1266128 | D2: =HYPERLINK(C2,B2) -> 1266128 | E2: ALARGADOR ARTERIAL | F2: ALARGADOR ARTERIAL 3M MEDIVEINS ALPHA-MEDIKIT 25 UNIDADES | G2: 6844 | H2: 15000
A3: http://www.mercadopublico.cl/TiendaFicha/Ficha?idProducto= | B3: 1266131 | C3: http://www.mercadopublico.cl/TiendaFicha/Ficha?idProducto=1266131 | D3: 1266131 | E3: ALARGADOR VENOSO | F3: ALARGADOR VENOSO 3M 50 CM M/H MEDIVEINS-MEDIKIT 25 UNIDADES | G3: 6845 | H3: =H2+5000 -> 20000
A4: http://www.mercadopublico.cl/TiendaFicha/Ficha?idProducto= | B4: 1266186 | C4: http://www.mercadopublico.cl/TiendaFicha/Ficha?idProducto=1266186 | D4: 1266186 | E4: APÓSITO | F4: APÓSITO TEGADERM FILM 1627 TRANSPARENTE 10 X 25 CM 20 UNIDADES | G4: 6860 | H4: =H3+5000 -> 25000
A5: http://www.mercadopublico.cl/TiendaFicha/Ficha?idProducto= | B5: 1266197 | C5: http://www.mercadopublico.cl/TiendaFicha/Ficha?idProducto=1266197 | D5: 1266197 | E5: APÓSITO | F5: APÓSITO TEGADERM + PAD 3582 TRANSPARENTE CON GASA NO ADHERENTE 5 X 7 CM 50 UNIDADES | G5: 6860 | H5: 30000
A6: http://www.mercadopublico.cl/TiendaFicha/Ficha?idProducto= | B6: 1266196 | C6: http://www.mercadopublico.cl/TiendaFicha/Ficha?idProducto=1266196 | D6: 1266196 | E6: APÓSITO | F6: APÓSITO 3M TRANSPARENTE CON GASA NO ADHERENTE TEGADERM + PAD 3593 10 X 35 CM 25 UNIDADES | G6: 6860 | H6: 35000
A7: http://www.mercadopublico.cl/TiendaFicha/Ficha?idProducto= | B7: 1266155 | C7: http://www.mercadopublico.cl/TiendaFicha/Ficha?idProducto=1266155 | D7: 1266155 | E7: APÓSITO | F7: APÓSITO 3M CAVILON PELICULA PROTECTORA SIN ARDOR 3355 12 UNIDADES | G7: 6860 | H7: 40000
A8: http://www.mercadopublico.cl/TiendaFicha/Ficha?idProducto= | B8: 1266193 | C8: http://www.mercadopublico.cl/TiendaFicha/Ficha?idProducto=1266193 | D8: 1266193 | E8: APÓSITO | F8: APÓSITO 3M TRANSPARENTE ADHESIVO TEGADERM 9534HP 6 X 7 CM 100 UNIDADES | G8: 6860 | H8: 45000
A9: http://www.mercadopublico.cl/TiendaFicha/Ficha?idProducto= | B9: 1266166 | C9: http://www.mercadopublico.cl/TiendaFicha/Ficha?idProducto=1266166 | D9: 1266166 | E9: APÓSITO | F9: APÓSITO 3M HIDROGEL TUBO 15 GR TEGADERM 91110 10 UNIDADES | G9: 6860 | H9: 50000
A10: http://www.mercadopublico.cl/TiendaFicha/Ficha?idProducto= | B10: 1266151 | C10: http://www.mercadopublico.cl/TiendaFicha/Ficha?idProducto=1266151 | D10: 1266151 | E10: APÓSITO | F10: APÓSITO 3M ALGINATO DE CALCIO EN PLACA TEGADERM 90112 10 X 10 CM 10 UNIDADES | G10: 6860 | H10: 55000
A11: http://www.mercadopublico.cl/TiendaFicha/Ficha?idProducto= | B11: 1266161 | C11: http://www.mercadopublico.cl/TiendaFicha/Ficha?idProducto=1266161 | D11: 1266161 | E11: APÓSITO | F11: APÓSITO 3M HIDROCOLOIDE OVALADO TEGADERM STANDARD 90001 7 X 9 CM 5 UNIDADES | G11: 6860 | H11: 60000
A12: http://www.mercadopublico.cl/TiendaFicha/Ficha?idProducto= | B12: 1266164 | C12: http://www.mercadopublico.cl/TiendaFicha/Ficha?idProducto=1266164 | D12: 1266164 | E12: APÓSITO | F12: APÓSITO 3M HIDROCOLOIDE THIN OVALADO TEGADERM 90023 10 X 12 CM 10 UNIDADES | G12: 6860 | H12: 65000
A13: http://www.mercadopublico.cl/TiendaFicha/Ficha?idProducto= | B13: 1266169 | C13: http://www.mercadopublico.cl/TiendaFicha/Ficha?idProducto=1266169 | D13: 1266169 | E13: APÓSITO | F13: APÓSITO 3M CAVILON PELICULA PROTECTORA SIN ARDOR SPRAY 28 ML 12 UNIDADES | G13: 6860 | H13: 70000
A14: http://www.mercadopublico.cl/TiendaFicha/Ficha?idProducto= | B14: 1266202 | C14: http://www.mercadopublico.cl/TiendaFicha/Ficha?idProducto=1266202 | D14: 1266202 | E14: APÓSITO | F14: APÓSITO 3M TRANSPARENTE CON GASA NO ADHERENTE TEGADERM + PAD 3589 9 X 15 CM 25 UNIDADES | G14: 6860 | H14: 75000
A15: http://www.mercadopublico.cl/TiendaFicha/Ficha?idProducto= | B15: 1266160 | C15: http://www.mercadopublico.cl/TiendaFicha/Ficha?idProducto=1266160 | D15: 1266160 | E15: APÓSITO | F15: APÓSITO 3M HIDROCOLOIDE OVALADO TEGADERM STANDARD 90004 14 X 17 CM 3 UNIDADES | G15: 6860 | H15: 80000
A16: http://www.mercadopublico.cl/TiendaFicha/Ficha?idProducto= | B16: 1266184 | C16: http://www.mercadopublico.cl/TiendaFicha/Ficha?idProducto=1266184 | D16: 1266184 | E16: APÓSITO | F16: APÓSITO 3M TRANSPARENTE ADHESIVO TEGADERM 1626W 10 X 12 CM 50 UNIDADES | G16: 6860 | H16: 85000
A17: http://www.mercadopublico.cl/TiendaFicha/Ficha?idProducto= | B17: 1266203 | C17: http://www.mercadopublico.cl/TiendaFicha/Ficha?idProducto=1266203 | D17: 1266203 | E17: APÓSITO | F17: APÓSITO 3M TRANSPARENTE CON GASA NO ADHERENTE TEGADERM + PAD 3591 9 X 25 CM 25 UNIDADES | G17: 6860 | H17: 90000
A18: http://www.mercadopublico.cl/TiendaFicha/Ficha?idProducto= | B18: 1266156 | C18: http://www.mercadopublico.cl/TiendaFicha/Ficha?idProducto=1266156 | D18: 1266156 | E18: APÓSITO | F18: APÓSITO 3M ESPUMA HIDROFÍLICA SIN ADHESIVO TEGADERM FOAM 90601 10 X 10 CM 10 UNIDADES | G18: 6860 | H18: 95000
A19: http://www.mercadopublico.cl/TiendaFicha/Ficha?idProducto= | B19: 1266192 | C19: http://www.mercadopublico.cl/TiendaFicha/Ficha?idProducto=1266192 | D19: 1266192 | E19: APÓSITO | F19: APÓSITO 3M TRANSPARENTE ADHESIVO TEGADERM 1624W 6 X 7 CM 100 UNIDADES | G19: 6860 | H19: 100000
A20: http://www.mercadopublico.cl/TiendaFicha/Ficha?idProducto= | B20: 1266165 | C20: http://www.mercadopublico.cl/TiendaFicha/Ficha?idProducto=1266165 | D20: 1266165 | E20: APÓSITO | F20: APÓSITO 3M HIDROCOLOIDE THIN OVALADO TEGADERM 90021 7 X 9 CM 10 UNIDADES | G20: 6860 | H20: 105000
A21: http://www.mercadopublico.cl/TiendaFicha/Ficha?idProducto= | B21: 1266179 | C21: http://www.mercadopublico.cl/TiendaFicha/Ficha?idProducto=1266179 | D21: 1266179 | E21: APÓSITO | F21: APÓSITO 3M TELA SUAVE CON GASA NO ADHERENTE MEDIPORE + PAD 3562 5 X 7 CM 50 UNIDADES | G21: 6860 | H21: 110000
A22: http://www.mercadopublico.cl/TiendaFicha/Ficha?idProducto= | B22: 1266195 | C22: http://www.mercadopublico.cl/TiendaFicha/Ficha?idProducto=1266195 | D22: 1266195 | E22: APÓSITO | F22: APÓSITO 3M TRANSPARENTE ADHESIVO TEGADERM I.V. 1655 8,5 X 11,5 CM 50 UNIDADES | G22: 6860 | H22: 115000
A23: http://www.mercadopublico.cl/TiendaFicha/Ficha?idProducto= | B23: 1266194 | C23: http://www.mercadopublico.cl/TiendaFicha/Ficha?idProducto=1266194 | D23: 1266194 | E23: APÓSITO | F23: APÓSITO 3M TRANSPARENTE ADHESIVO TEGADERM I.V. 1633 7 X 8,5 CM 100 UNIDADES | G23: 6860 | H23: 120000
A24: http://www.mercadopublico.cl/TiendaFicha/Ficha?idProducto= | B24: 1266191 | C24: http://www.mercadopublico.cl/TiendaFicha/Ficha?idProducto=1266191 | D24: 1266191 | E24: APÓSITO | F24: APÓSITO 3M TRANSPARENTE ADHESIVO TEGADERM I.V. 1610 5 X 5,7 CM 100 UNIDADES | G24: 6860 | H24: 125000
A25: http://www.mercadopublico.cl/TiendaFicha/Ficha?idProducto= | B25: 1266172 | C25: http://www.mercadopublico.cl/TiendaFicha/Ficha?idProducto=1266172 | D25: 1266172 | E25: APÓSITO | F25: APÓSITO 3M TEGADERM FOAM 10 X 20 CM 5 UNIDADES | G25: 6860 | H25: 130000
A26: http://www.mercadopublico.cl/TiendaFicha/Ficha?idProducto= | B26: 1339629 | C26: http://www.mercadopublico.cl/TiendaFicha/Ficha?idProducto=1339629 | D26: 1339629 | E26: APÓSITO | F26: APÓSITO 3M TEGADERM I.V. ADVANCED 1680 PEDIATRICO PEQUEÑO 3,8 X 4,5 CM 400 UNIDADES | G26: 6860 | H26: 135000
A27: http://www.mercadopublico.cl/TiendaFicha/Ficha?idProducto= | B27: 1266152 | C27: http://www.mercadopublico.cl/TiendaFicha/Ficha?idProducto=1266152 | D27: 1266152 | E27: APÓSITO | F27: APÓSITO 3M ANTIMICROBIANO CON PLATA TEGADERM AG MESH 90500 5 X 5 CM 5 UNIDADES | G27: 6860 | H27: 140000
A28: http://www.mercadopublico.cl/TiendaFicha/Ficha?idProducto= | B28: 1266190 | C28: http://www.mercadopublico.cl/TiendaFicha/Ficha?idProducto=1266190 | D28: 1266190 | E28: APÓSITO | F28: APÓSITO 3M TRANSPARENTE ADHESIVO TEGADERM 1622W 4,4 X 4,4 CM 100 UNIDADES | G28: 6860 | H28: 145000
A29: http://www.mercadopublico.cl/TiendaFicha/Ficha?idProducto= | B29: 1266153 | C29: http://www.mercadopublico.cl/TiendaFicha/Ficha?idProducto=1266153 | D29: 1266153 | E29: APÓSITO | F29: APÓSITO 3M ANTIMICROBIANO CON PLATA TEGADERM AG MESH 90501 10 X 12,7 CM 5 UNIDADES | G29: 6860 | H29: 150000
A30: http://www.mercadopublico.cl/TiendaFicha/Ficha?idProducto= | B30: 1266200 | C30: http://www.mercadopublico.cl/TiendaFicha/Ficha?idProducto=1266200 | D30: 1266200 | E30: APÓSITO | F30: APÓSITO 3M TRANSPARENTE CON GASA NO ADHERENTE TEGADERM + PAD 3587 9 X 10,5 CM 25 UNIDADES | G30: 6860 | H30: 155000
A31: http://www.mercadopublico.cl/TiendaFicha/Ficha?idProducto= | B31: 1266158 | C31: http://www.mercadopublico.cl/TiendaFicha/Ficha?idProducto=1266158 | D31: 1266158 | E31: APÓSITO | F31: APÓSITO 3M HIDROCOLOIDE CUADRADO STANDARD 90002 10 X 10 CM 5 UNIDADES | G31: 6860 | H31: 160000
A32: http://www.mercadopublico.cl/TiendaFicha/Ficha?idProducto= | B32: 1266150 | C32: http://www.mercadopublico.cl/TiendaFicha/Ficha?idProducto=1266150 | D32: 1266150 | E32: APÓSITO | F32: APÓSITO 3M ALGINATO DE CALCIO EN MECHA TEGADERM 90120 30,4 CM 5 UNIDADES | G32: 6860 | H32: 165000
A33: http://www.mercadopublico.cl/TiendaFicha/Ficha?idProducto= | B33: 1266175 | C33: http://www.mercadopublico.cl/TiendaFicha/Ficha?idProducto=1266175 | D33: 1266175 | E33: APÓSITO | F33: APÓSITO 3M TEGADERM I.V. CHG CATETERES CENTRALES 8,5 X 11,5 CM 25 UNIDADES | G33: 6860 | H33: 170000
A34: http://www.mercadopublico.cl/TiendaFicha/Ficha?idProducto= | B34: 1266176 | C34: http://www.mercadopublico.cl/TiendaFicha/Ficha?idProducto=1266176 | D34: 1266176 | E34: APÓSITO | F34: APÓSITO 3M TEGADERM I.V. CHG CATETERES PERIFERICOS 7 X 8,5 CM 25 UNIDADES | G34: 6860 | H34: 175000
A35: http://www.mercadopublico.cl/TiendaFicha/Ficha?idProducto= | B35: 1266148 | C35: http://www.mercadopublico.cl/TiendaFicha/Ficha?idProducto=1266148 | D35: 1266148 | E35: APÓSITO | F35: APÓSITO 3M ALGINATO AG TEGADERM 10 X 12,7 CM 10 UNIDADES | G35: 6860 | H35: 180000
A36: http://www.mercadopublico.cl/TiendaFicha/Ficha?idProducto= | B36: 1266149 | C36: http://www.mercadopublico.cl/TiendaFicha/Ficha?idProducto=1266149 | D36: 1266149 | E36: APÓSITO | F36: APÓSITO 3M ALGINATO AG TEGADERM 5 X 5 CM 10 UNIDADES | G36: 6860 | H36: 185000
A37: http://www.mercadopublico.cl/TiendaFicha/Ficha?idProducto= | B37: 1266170 | C37: http://www.mercadopublico.cl/TiendaFicha/Ficha?idProducto=1266170 | D37: 1266170 | E37: APÓSITO | F37: APÓSITO 3M RESTON CONFORMABLE 16 X 20 CM 2 UNIDADES | G37: 6860 | H37: 190000
A38: http://www.mercadopublico.cl/TiendaFicha/Ficha?idProducto= | B38: 1266183 | C38: http://www.mercadopublico.cl/TiendaFicha/Ficha?idProducto=1266183 | D38: 1266183 | E38: APÓSITO | F38: APÓSITO 3M TELA SUAVE CON GASA NO ADHERENTE MEDIPORE + PAD 3570 9 X 20 CM 25 UNIDADES | G38: 6860 | H38: 195000
A39: http://www.mercadopublico.cl/TiendaFicha/Ficha?idProducto= | B39: 1339630 | C39: http://www.mercadopublico.cl/TiendaFicha/Ficha?idProducto=1339630 | D39: 1339630 | E39: APÓSITO | F39: APÓSITO 3M TEGADERM I.V. ADVANCED 1682 PEDIATRICO GRANDE 5 X 5,7 CM 400 UNIDADES | G39: 6860 | H39: 200000
A40: http://www.mercadopublico.cl/TiendaFicha/Ficha?idProducto= | B40: 1266159 | C40: http://www.mercadopublico.cl/TiendaFicha/Ficha?idProducto=1266159 | D40: 1266159 | E40: APÓSITO | F40: APÓSITO 3M HIDROCOLOIDE OVALADO TEGADERM STANDARD 90003 10 X 12 CM 5 UNIDADES | G40: 6860 | H40: 205000
A41: http://www.mercadopublico.cl/TiendaFicha/Ficha?idProducto= | B41: 1266206 | C41: http://www.mercadopublico.cl/TiendaFicha/Ficha?idProducto=1266206 | D41: 1266206 | E41: APÓSITO | F41: APÓSITO 3M TRANSPARENTE NO ADHERENTE TEGADERM CONTACT 5644 20 X 25 CM 5 UNIDADES | G41: 6860 | H41: 210000
A42: http://www.mercadopublico.cl/TiendaFicha/Ficha?idProducto= | B42: 1266157 | C42: http://www.mercadopublico.cl/TiendaFicha/Ficha?idProducto=1266157 | D42: 1266157 | E42: APÓSITO | F42: APÓSITO 3M ESPUMA HIDROFÍLICA SIN ADHESIVO TEGADERM FOAM 90602 10 X 20 CM 5 UNIDADES | G42: 6860 | H42: 215000
A43: http://www.mercadopublico.cl/TiendaFicha/Ficha?idProducto= | B43: 1266173 | C43: http://www.mercadopublico.cl/TiendaFicha/Ficha?idProducto=1266173 | D43: 1266173 | E43: APÓSITO | F43: APÓSITO 3M TEGADERM I.V. ADVANCED 1683 6,5 X 7 CM 100 UNIDADES | G43: 6860 | H43: 220000
A44: http://www.mercadopublico.cl/TiendaFicha/Ficha?idProducto= | B44: 1266177 | C44: http://www.mercadopublico.cl/TiendaFicha/Ficha?idProducto=1266177 | D44: 1266177 | E44: APÓSITO | F44: APÓSITO 3M TEGADERM SUPERABSORBER 90701 10 X 10 CM 10 UNIDADES | G44: 6860 | H44: 225000
A45: http://www.mercadopublico.cl/TiendaFicha/Ficha?idProducto= | B45: 1266182 | C45: http://www.mercadopublico.cl/TiendaFicha/Ficha?idProducto=1266182 | D45: 1266182 | E45: APÓSITO | F45: APÓSITO 3M TELA SUAVE CON GASA NO ADHERENTE MEDIPORE + PAD 3569 9 X 15 CM 25 UNIDADES | G45: 6860 | H45: 230000
A46: http://www.mercadopublico.cl/TiendaFicha/Ficha?idProducto= | B46: 1266205 | C46: http://www.mercadopublico.cl/TiendaFicha/Ficha?idProducto=1266205 | D46: 1266205 | E46: APÓSITO | F46: APÓSITO 3M TRANSPARENTE NO ADHERENTE TEGADERM CONTACT 5643 7,5 X 20 CM 10 UNIDADES | G46: 6860 | H46: 235000
A47: http://www.mercadopublico.cl/TiendaFicha/Ficha?idProducto= | B47: 1266171 | C47: http://www.mercadopublico.cl/TiendaFicha/Ficha?idProducto=1266171 | D47: 1266171 | E47: APÓSITO | F47: APÓSITO 3M RESTON EN ROLLO 0,7 X 10 CM X 4,9 M UNIDAD | G47: 6860 | H47: 240000
A48: http://www.mercadopublico.cl/TiendaFicha/Ficha?idProducto= | B48: 1266180 | C48: http://www.mercadopublico.cl/TiendaFicha/Ficha?idProducto=1266180 | D48: 1266180 | E48: APÓSITO | F48: APÓSITO 3M TELA SUAVE CON GASA NO ADHERENTE MEDIPORE + PAD 3564 6 X 10 CM 50 UNIDADES | G48: 6860 | H48: 245000
A49: http://www.mercadopublico.cl/TiendaFicha/Ficha?idProducto= | B49: 1370315 | C49: http://www.mercadopublico.cl/TiendaFicha/Ficha?idProducto=1370315 | D49: 1370315 | E49: APÓSITO | F49: APÓSITO 3M TEGADERM I.V. AVANZADO 1685 CATETERES CENTRALES 200 UNIDADES | G49: 6860 | H49: 250000
A50: http://www.mercadopublico.cl/TiendaFicha/Ficha?idProducto= | B50: 1370314 | C50: http://www.mercadopublico.cl/TiendaFicha/Ficha?idProducto=1370314 | D50: 1370314 | E50: APÓSITO | F50: APÓSITO 3M TEGADERM I.V. AVANZADO 1683 CATETERES PERIFERICOS 400 UNIDADES | G50: 6860 | H50: 255000
A51: http://www.mercadopublico.cl/TiendaFicha/Ficha?idProducto= | B51: 1266178 | C51: http://www.mercadopublico.cl/TiendaFicha/Ficha?idProducto=1266178 | D51: 1266178 | E51: APÓSITO | F51: APÓSITO 3M TEGADERM SUPERABSORBER 90702 10 X 20 CM 10 UNIDADES | G51: 6860 | H51: 260000
A52: http://www.mercadopublico.cl/TiendaFicha/Ficha?idProducto= | B52: 1266162 | C52: http://www.mercadopublico.cl/TiendaFicha/Ficha?idProducto=1266162 | D52: 1266162 | E52: APÓSITO | F52: APÓSITO 3M HIDROCOLOIDE SACRO TEGADERM STANDARD 90007 12 X 14 CM 6 UNIDADES | G52: 6860 | H52: 265000
A53: http://www.mercadopublico.cl/TiendaFicha/Ficha?idProducto= | B53: 1266204 | C53: http://www.mercadopublico.cl/TiendaFicha/Ficha?idProducto=1266204 | D53: 1266204 | E53: APÓSITO | F53: APÓSITO 3M TRANSPARENTE NO ADHERENTE TEGADERM CONTACT 5642 7,5 X 10 CM 10 UNIDADES | G53: 6860 | H53: 270000
A54: http://www.mercadopublico.cl/TiendaFicha/Ficha?idProducto= | B54: 1266163 | C54: http://www.mercadopublico.cl/TiendaFicha/Ficha?idProducto=1266163 | D54: 1266163 | E54: APÓSITO | F54: APÓSITO 3M HIDROCOLOIDE THIN CUADRADO TEGADERM 90022 10 X 10 CM 5 UNIDADES | G54: 6860 | H54: 275000
A55: http://www.mercadopublico.cl/TiendaFicha/Ficha?idProducto= | B55: 1266189 | C55: http://www.mercadopublico.cl/TiendaFicha/Ficha?idProducto=1266189 | D55: 1266189 | E55: APÓSITO | F55: APÓSITO 3M TRANSPARENTE ADHESIVO TEGADERM 1629 20 X 30 CM 10 UNIDADES | G55: 6860 | H55: 280000
A56: http://www.mercadopublico.cl/TiendaFicha/Ficha?idProducto= | B56: 1266181 | C56: http://www.mercadopublico.cl/TiendaFicha/Ficha?idProducto=1266181 | D56: 1266181 | E56: APÓSITO | F56: APÓSITO 3M TELA SUAVE CON GASA NO ADHERENTE MEDIPORE + PAD 3566 9 X 10 CM 25 UNIDADES | G56: 6860 | H56: 285000
A57: http://www.mercadopublico.cl/TiendaFicha/Ficha?idProducto= | B57: 1266185 | C57: http://www.mercadopublico.cl/TiendaFicha/Ficha?idProducto=1266185 | D57: 1266185 | E57: APÓSITO | F57: APÓSITO 3M TRANSPARENTE ADHESIVO TEGADERM 9536HP 10 X 12 CM 50 UNIDADES | G57: 6860 | H57: 290000
A58: http://www.mercadopublico.cl/TiendaFicha/Ficha?idProducto= | B58: 1266188 | C58: http://www.mercadopublico.cl/TiendaFicha/Ficha?idProducto=1266188 | D58: 1266188 | E58: APÓSITO | F58: APÓSITO 3M TRANSPARENTE ADHESIVO TEGADERM 1628 15 X 20 CM 10 UNIDADES | G58: 6860 | H58: 295000
A59: http://www.mercadopublico.cl/TiendaFicha/Ficha?idProducto= | B59: 1266199 | C59: http://www.mercadopublico.cl/TiendaFicha/Ficha?idProducto=1266199 | D59: 1266199 | E59: APÓSITO | F59: APÓSITO 3M TRANSPARENTE CON GASA NO ADHERENTE TEGADERM + PAD 3584 6 X 10 CM 50 UNIDADES | G59: 6860 | H59: 300000
A60: http://www.mercadopublico.cl/TiendaFicha/Ficha?idProducto= | B60: 1266168 | C60: http://www.mercadopublico.cl/TiendaFicha/Ficha?idProducto=1266168 | D60: 1266168 | E60: APÓSITO | F60: APÓSITO 3M CAVILON PELICULA PROTECTORA SIN ARDOR SACHET 1 ML 25 UNIDADES | G60: 6860 | H60: 305000
A61: http://www.mercadopublico.cl/TiendaFicha/Ficha?idProducto= | B61: 1266174 | C61: http://www.mercadopublico.cl/TiendaFicha/Ficha?idProducto=1266174 | D61: 1266174 | E61: APÓSITO | F61: APÓSITO 3M TEGADERM I.V. ADVANCED 1685 8,5 X 11 CM 50 UNIDADES | G61: 6860 | H61: 310000
A62: http://www.mercadopublico.cl/TiendaFicha/Ficha?idProducto= | B62: 1323219 | C62: http://www.mercadopublico.cl/TiendaFicha/Ficha?idProducto=1323219 | D62: 1323219 | E62: BANDEJA DE CURACIÓN | F62: BANDEJA DE CURACIÓN 3M KIT INTERMEDIO II ESTÉRIL DESECHABLE 3505 60 UNIDADES | G62: 6835 | H62: 315000
A63: http://www.mercadopublico.cl/TiendaFicha/Ficha?idProducto= | B63: 1266295 | C63: http://www.mercadopublico.cl/TiendaFicha/Ficha?idProducto=1266295 | D63: 1266295 | E63: BANDEJA DE CURACIÓN | F63: BANDEJA DE CURACIÓN 3M KIT ESTÉRIL DESECHABLE 3538 30 UNIDADES | G63: 6835 | H63: 320000
A64: http://www.mercadopublico.cl/TiendaFicha/Ficha?idProducto= | B64: 1266297 | C64: http://www.mercadopublico.cl/TiendaFicha/Ficha?idProducto=1266297 | D64: 1266297 | E64: BANDEJA DE CURACIÓN | F64: BANDEJA DE CURACIÓN 3M KIT INTERMEDIO II ESTÉRIL DESECHABLE 3509 40 UNIDADES | G64: 6835 | H64: 325000
A65: http://www.mercadopublico.cl/TiendaFicha/Ficha?idProducto= | B65: 1266634 | C65: http://www.mercadopublico.cl/TiendaFicha/Ficha?idProducto=1266634 | D65: 1266634 | E65: BOBINA DE ESTERILIZACIÓN | F65: ENVOLTURA 3M MIXTO CON FUELLE 30 CM X 100 M ROLLO | G65: 6823 | H65: 330000
A66: http://www.mercadopublico.cl/TiendaFicha/Ficha?idProducto= | B66: 1266639 | C66: =CONCATENATE(A66,B66) -> http://www.mercadopublico.cl/TiendaFicha/Ficha?idProducto=1266639 | D66: =HYPERLINK(C66,B66) -> 1266639 | E66: BOBINA DE ESTERILIZACIÓN | F66: ENVOLTURA 3M MIXTO SIN FUELLE 20 CM X 200 M 2 ROLLOS | G66: 6823 | H66: 335000
A67: http://www.mercadopublico.cl/TiendaFicha/Ficha?idProducto= | B67: 1266635 | C67: http://www.mercadopublico.cl/TiendaFicha/Ficha?idProducto=1266635 | D67: 1266635 | E67: BOBINA DE ESTERILIZACIÓN | F67: ENVOLTURA 3M MIXTO CON FUELLE 40 CM X 100 M ROLLO | G67: 6823 | H67: 340000
A68: http://www.mercadopublico.cl/TiendaFicha/Ficha?idProducto= | B68: 1266632 | C68: http://www.mercadopublico.cl/TiendaFicha/Ficha?idProducto=1266632 | D68: 1266632 | E68: BOBINA DE ESTERILIZACIÓN | F68: ENVOLTURA 3M MIXTO CON FUELLE 20 CM X 100 M 2 ROLLOS | G68: 6823 | H68: =H67+5000 -> 345000
A69: http://www.mercadopublico.cl/TiendaFicha/Ficha?idProducto= | B69: 1266630 | C69: http://www.mercadopublico.cl/TiendaFicha/Ficha?idProducto=1266630 | D69: 1266630 | E69: BOBINA DE ESTERILIZACIÓN | F69: BOBINA DE ESTERILIZACIÓN 3M MIXTO CON FUELLE 10 CM X 100 M 3 ROLLOS | G69: 6823 | H69: 350000
A70: http://www.mercadopublico.cl/TiendaFicha/Ficha?idProducto= | B70: 1266637 | C70: http://www.mercadopublico.cl/TiendaFicha/Ficha?idProducto=1266637 | D70: 1266637 | E70: BOBINA DE ESTERILIZACIÓN | F70: ENVOLTURA 3M MIXTO SIN FUELLE 10 CM X 200 M 3 ROLLOS | G70: 6823 | H70: 355000
A71: http://www.mercadopublico.cl/TiendaFicha/Ficha?idProducto= | B71: 1266640 | C71: http://www.mercadopublico.cl/TiendaFicha/Ficha?idProducto=1266640 | D71: 1266640 | E71: BOBINA DE ESTERILIZACIÓN | F71: ENVOLTURA 3M MIXTO SIN FUELLE 25 CM X 200 M 2 ROLLOS | G71: 6823 | H71: 360000
A72: http://www.mercadopublico.cl/TiendaFicha/Ficha?idProducto= | B72: 1266642 | C72: http://www.mercadopublico.cl/TiendaFicha/Ficha?idProducto=1266642 | D72: 1266642 | E72: BOBINA DE ESTERILIZACIÓN | F72: ENVOLTURA 3M MIXTO SIN FUELLE 40 CM X 200 M ROLLO | G72: 6823 | H72: 365000
A73: http://www.mercadopublico.cl/TiendaFicha/Ficha?idProducto= | B73: 1266633 | C73: http://www.mercadopublico.cl/TiendaFicha/Ficha?idProducto=1266633 | D73: 1266633 | E73: BOBINA DE ESTERILIZACIÓN | F73: ENVOLTURA 3M MIXTO CON FUELLE 25 CM X 100 M 2 ROLLOS | G73: 6823 | H73: 370000
A74: http://www.mercadopublico.cl/TiendaFicha/Ficha?idProducto= | B74: 1266641 | C74: http://www.mercadopublico.cl/TiendaFicha/Ficha?idProducto=1266641 | D74: 1266641 | E74: BOBINA DE ESTERILIZACIÓN | F74: ENVOLTURA 3M MIXTO SIN FUELLE 30 CM X 200 M ROLLO | G74: 6823 | H74: 375000
A75: http://www.mercadopublico.cl/TiendaFicha/Ficha?idProducto= | B75: 1266631 | C75: http://www.mercadopublico.cl/TiendaFicha/Ficha?idProducto=1266631 | D75: 1266631 | E75: BOBINA DE ESTERILIZACIÓN | F75: ENVOLTURA 3M MIXTO CON FUELLE 15 CM X 100 M 2 ROLLOS | G75: 6823 | H75: 380000
A76: http://www.mercadopublico.cl/TiendaFicha/Ficha?idProducto= | B76: 1266638 | C76: http://www.mercadopublico.cl/TiendaFicha/Ficha?idProducto=1266638 | D76: 1266638 | E76: BOBINA DE ESTERILIZACIÓN | F76: ENVOLTURA 3M MIXTO SIN FUELLE 15 CM X 200 M 2 ROLLOS | G76: 6823 | H76: 385000
A77: http://www.mercadopublico.cl/TiendaFicha/Ficha?idProducto= | B77: 1266636 | C77: http://www.mercadopublico.cl/TiendaFicha/Ficha?idProducto=1266636 | D77: 1266636 | E77: BOBINA DE ESTERILIZACIÓN | F77: ENVOLTURA 3M MIXTO CON FUELLE 7,5 CM X 100 M 4 ROLLOS | G77: 6823 | H77: 390000
A78: http://www.mercadopublico.cl/TiendaFicha/Ficha?idProducto= | B78: 1400369 | C78: http://www.mercadopublico.cl/TiendaFicha/Ficha?idProducto=1400369 | D78: 1400369 | E78: BOLSA PARA SANGRE | F78: BOLSA PARA SANGRE BAIR HUGGER RANGER FLUJO STANDAR 242 10 UNIDADES | G78: 6846 | H78: 395000
A79: http://www.mercadopublico.cl/TiendaFicha/Ficha?idProducto= | B79: 1520428 | C79: http://www.mercadopublico.cl/TiendaFicha/Ficha?idProducto=1520428 | D79: 1520428 | E79: CINTA ADHESIVA MEDICA | F79: CINTA ADHESIVA MEDICA 3M MICROFOAM 1528-3 7,5 CM X 5 M 4 ROLLOS | G79: 6836 | H79: 400000
A80: http://www.mercadopublico.cl/TiendaFicha/Ficha?idProducto= | B80: 1322896 | C80: http://www.mercadopublico.cl/TiendaFicha/Ficha?idProducto=1322896 | D80: 1322896 | E80: CINTA ADHESIVA MEDICA | F80: CINTA ADHESIVA MEDICA 3M TRANSPORE 1527-2 5 CM X 9,1 M 6 UNIDADES | G80: 6836 | H80: 405000
A81: http://www.mercadopublico.cl/TiendaFicha/Ficha?idProducto= | B81: 1340026 | C81: http://www.mercadopublico.cl/TiendaFicha/Ficha?idProducto=1340026 | D81: 1340026 | E81: CINTA ADHESIVA MEDICA | F81: CINTA ADHESIVA MEDICA 3M ROLLO 2865L MEDIPORE H + LINER 15 CM X 10 M UNIDAD | G81: 6836 | H81: 410000
A82: http://www.mercadopublico.cl/TiendaFicha/Ficha?idProducto= | B82: 1322877 | C82: http://www.mercadopublico.cl/TiendaFicha/Ficha?idProducto=1322877 | D82: 1322877 | E82: CINTA ADHESIVA MEDICA | F82: CINTA ADHESIVA MEDICA 3M TRANSPORE 1527-1 2,5 CM X 9,1 M 12 UNIDADES | G82: 6836 | H82: 415000
A83: http://www.mercadopublico.cl/TiendaFicha/Ficha?idProducto= | B83: 1322899 | C83: http://www.mercadopublico.cl/TiendaFicha/Ficha?idProducto=1322899 | D83: 1322899 | E83: CINTA ADHESIVA MEDICA | F83: CINTA ADHESIVA MEDICA 3M MICROPORE 1535-2 5 CM X 9,1 M 6 UNIDADES | G83: 6836 | H83: 420000
A84: http://www.mercadopublico.cl/TiendaFicha/Ficha?idProducto= | B84: 1322889 | C84: http://www.mercadopublico.cl/TiendaFicha/Ficha?idProducto=1322889 | D84: 1322889 | E84: CINTA ADHESIVA MEDICA | F84: CINTA ADHESIVA MEDICA 3M TRANSPORE 1527-0 1,3 CM X 9,1 M 24 UNIDADES | G84: 6836 | H84: 425000
A85: http://www.mercadopublico.cl/TiendaFicha/Ficha?idProducto= | B85: 1322895 | C85: http://www.mercadopublico.cl/TiendaFicha/Ficha?idProducto=1322895 | D85: 1322895 | E85: CINTA ADHESIVA MEDICA | F85: CINTA ADHESIVA MEDICA 3M MICROPORE 1535-1 2,5 CM X 9,1 M 12 UNIDADES | G85: 6836 | H85: 430000
A86: http://www.mercadopublico.cl/TiendaFicha/Ficha?idProducto= | B86: 1340022 | C86: http://www.mercadopublico.cl/TiendaFicha/Ficha?idProducto=1340022 | D86: 1340022 | E86: CINTA ADHESIVA MEDICA | F86: CINTA ADHESIVA MEDICA 3M ROLLO 2862L MEDIPORE H + LINER 5 CM X 10 M UNIDAD | G86: 6836 | H86: 435000
A87: http://www.mercadopublico.cl/TiendaFicha/Ficha?idProducto= | B87: 1370313 | C87: http://www.mercadopublico.cl/TiendaFicha/Ficha?idProducto=1370313 | D87: 1370313 | E87: CINTA ADHESIVA MEDICA | F87: CINTA ADHESIVA MEDICA 3M 1533-2 MICROPORE COLOR PIEL S/DISPENSADOR 5 CM X 9,1 M, 6 ROLLOS/ CAJA | G87: 6836 | H87: 440000
A88: http://www.mercadopublico.cl/TiendaFicha/Ficha?idProducto= | B88: 1266393 | C88: http://www.mercadopublico.cl/TiendaFicha/Ficha?idProducto=1266393 | D88: 1266393 | E88: CINTA ADHESIVA MEDICA | F88: CINTA ADHESIVA MEDICA 3M MICROFOAM 1528-2 5 CM X 5 M 4 ROLLOS | G88: 6836 | H88: 445000
A89: http://www.mercadopublico.cl/TiendaFicha/Ficha?idProducto= | B89: 1266402 | C89: http://www.mercadopublico.cl/TiendaFicha/Ficha?idProducto=1266402 | D89: 1266402 | E89: CINTA ADHESIVA MEDICA | F89: CINTA ADHESIVA MEDICA 3M TELA SUAVE MEDIPORE H 2862 5 CM X 9,1 M 12 ROLLOS | G89: 6836 | H89: 450000
A90: http://www.mercadopublico.cl/TiendaFicha/Ficha?idProducto= | B90: 1266395 | C90: http://www.mercadopublico.cl/TiendaFicha/Ficha?idProducto=1266395 | D90: 1266395 | E90: CINTA ADHESIVA MEDICA | F90: CINTA ADHESIVA MEDICA 3M MICROFOAM 1528-4 10 CM X 5 M 3 ROLLOS | G90: 6836 | H90: 455000
A91: http://www.mercadopublico.cl/TiendaFicha/Ficha?idProducto= | B91: 1266404 | C91: http://www.mercadopublico.cl/TiendaFicha/Ficha?idProducto=1266404 | D91: 1266404 | E91: CINTA ADHESIVA MEDICA | F91: CINTA ADHESIVA MEDICA 3M TELA SUAVE MEDIPORE H 2864 10 CM X 9,1 M 12 ROLLOS | G91: 6836 | H91: 460000
A92: http://www.mercadopublico.cl/TiendaFicha/Ficha?idProducto= | B92: 1340024 | C92: http://www.mercadopublico.cl/TiendaFicha/Ficha?idProducto=1340024 | D92: 1340024 | E92: CINTA ADHESIVA MEDICA | F92: CINTA ADHESIVA MEDICA 3M ROLLO 2864L MEDIPORE H + LINER 10 CM X 10 M UNIDAD | G92: 6836 | H92: 465000
A93: http://www.mercadopublico.cl/TiendaFicha/Ficha?idProducto= | B93: 1299522 | C93: http://www.mercadopublico.cl/TiendaFicha/Ficha?idProducto=1299522 | D93: 1299522 | E93: CINTA ADHESIVA MEDICA | F93: CINTA ADHESIVA MEDICA 3M MICROPORE 1530-1 12 ROLLOS | G93: 6836 | H93: 470000
A94: http://www.mercadopublico.cl/TiendaFicha/Ficha?idProducto= | B94: 1266394 | C94: http://www.mercadopublico.cl/TiendaFicha/Ficha?idProducto=1266394 | D94: 1266394 | E94: CINTA ADHESIVA MEDICA | F94: CINTA ADHESIVA MEDICA 3M MICROFOAM 1528-2 5 CM X 5 M 6 ROLLOS | G94: 6836 | H94: 475000
A95: http://www.mercadopublico.cl/TiendaFicha/Ficha?idProducto= | B95: 1299524 | C95: http://www.mercadopublico.cl/TiendaFicha/Ficha?idProducto=1299524 | D95: 1299524 | E95: CINTA ADHESIVA MEDICA | F95: CINTA ADHESIVA MEDICA 3M MICROPOROSA 1533-1 2,5 CM X 9,1 M 12 ROLLOS | G95: 6836 | H95: 480000
A96: http://www.mercadopublico.cl/TiendaFicha/Ficha?idProducto= | B96: 1266401 | C96: http://www.mercadopublico.cl/TiendaFicha/Ficha?idProducto=1266401 | D96: 1266401 | E96: CINTA ADHESIVA MEDICA | F96: CINTA ADHESIVA MEDICA 3M QUIRÚRGICA DE SILICONA 2,5 CM X 5 M 12 ROLLOS | G96: 6836 | H96: 485000
A97: http://www.mercadopublico.cl/TiendaFicha/Ficha?idProducto= | B97: 1266403 | C97: http://www.mercadopublico.cl/TiendaFicha/Ficha?idProducto=1266403 | D97: 1266403 | E97: CINTA ADHESIVA MEDICA | F97: CINTA ADHESIVA MEDICA 3M TELA SUAVE MEDIPORE H 2863 7,5 CM X 9,1 M 12 ROLLOS | G97: 6836 | H97: 490000
A98: http://www.mercadopublico.cl/TiendaFicha/Ficha?idProducto= | B98: 1266391 | C98: http://www.mercadopublico.cl/TiendaFicha/Ficha?idProducto=1266391 | D98: 1266391 | E98: CINTA ADHESIVA MEDICA | F98: CINTA ADHESIVA MEDICA 3M DURAPORE 1538-1 2,5 CM X 9,1 M 12 ROLLOS | G98: 6836 | H98: 495000
A99: http://www.mercadopublico.cl/TiendaFicha/Ficha?idProducto= | B99: 1266396 | C99: http://www.mercadopublico.cl/TiendaFicha/Ficha?idProducto=1266396 | D99: 1266396 | E99: CINTA ADHESIVA MEDICA | F99: CINTA ADHESIVA MEDICA 3M MICROPORE 1533-0 1,3 CM X 9,1 M 24 ROLLOS | G99: 6836 | H99: 500000
A100: http://www.mercadopublico.cl/TiendaFicha/Ficha?idProducto= | B100: 1266397 | C100: http://www.mercadopublico.cl/TiendaFicha/Ficha?idProducto=1266397 | D100: 1266397 | E100: CINTA ADHESIVA MEDICA | F100: CINTA ADHESIVA MEDICA 3M MICROPORE 1535-0 1,3 CM X 9,1 M 24 ROLLOS | G100: 6836 | H100: 505000
A101: http://www.mercadopublico.cl/TiendaFicha/Ficha?idProducto= | B101: 1266408 | C101: http://www.mercadopublico.cl/TiendaFicha/Ficha?idProducto=1266408 | D101: 1266408 | E101: CINTA ADHESIVA MEDICA | F101: CINTA ADHESIVA MEDICA 3M TRANSPORE 1527-3 7,5 CM X 9,1 M 4 ROLLOS | G101: 6836 | H101: 510000
A102: http://www.mercadopublico.cl/TiendaFicha/Ficha?idProducto= | B102: 1266392 | C102: http://www.mercadopublico.cl/TiendaFicha/Ficha?idProducto=1266392 | D102: 1266392 | E102: CINTA ADHESIVA MEDICA | F102: CINTA ADHESIVA MEDICA 3M DURAPORE 1538-2 5 CM X 9,1 M 6 ROLLOS | G102: 6836 | H102: 515000
A103: http://www.mercadopublico.cl/TiendaFicha/Ficha?idProducto= | B103: 1515384 | C103: http://www.mercadopublico.cl/TiendaFicha/Ficha?idProducto=1515384 | D103: 1515384 | E103: CINTA ESTERILIZACIÓN | F103: CINTA ESTERILIZACIÓN COMPLY 3M ROLLO 55 X 19 CM 1228 PARA VH2O2 PERÓXIDO CAJA DE 24 UNIDADES | G103: 6842 | H103: 520000
A104: http://www.mercadopublico.cl/TiendaFicha/Ficha?idProducto= | B104: 1266387 | C104: http://www.mercadopublico.cl/TiendaFicha/Ficha?idProducto=1266387 | D104: 1266387 | E104: CINTA ESTERILIZACIÓN | F104: CINTA ESTERILIZACIÓN 3M ETIQUETA INCHEQUE ROJO 12 ROLLOS | G104: 6842 | H104: 525000
A105: http://www.mercadopublico.cl/TiendaFicha/Ficha?idProducto= | B105: 1266384 | C105: http://www.mercadopublico.cl/TiendaFicha/Ficha?idProducto=1266384 | D105: 1266384 | E105: CINTA ESTERILIZACIÓN | F105: CINTA ESTERILIZACIÓN 3M COMPLY TIRAS INDICADORAS OXIDO DE ETILENO MULTIPARÁMETRO 240 TIRAS | G105: 6842 | H105: 530000
A106: http://www.mercadopublico.cl/TiendaFicha/Ficha?idProducto= | B106: 1266374 | C106: http://www.mercadopublico.cl/TiendaFicha/Ficha?idProducto=1266374 | D106: 1266374 | E106: CINTA ESTERILIZACIÓN | F106: CINTA ESTERILIZACIÓN 3M BOWIE-DICK TEST PACK PLUS 30 UNIDADES | G106: 6842 | H106: 535000
A107: http://www.mercadopublico.cl/TiendaFicha/Ficha?idProducto= | B107: 1266370 | C107: http://www.mercadopublico.cl/TiendaFicha/Ficha?idProducto=1266370 | D107: 1266370 | E107: CINTA ESTERILIZACIÓN | F107: CINTA ESTERILIZACIÓN 3M AUTOCLAVE 12 MM X 55 M ROLLO | G107: 6842 | H107: 540000
A108: http://www.mercadopublico.cl/TiendaFicha/Ficha?idProducto= | B108: 1266375 | C108: http://www.mercadopublico.cl/TiendaFicha/Ficha?idProducto=1266375 | D108: 1266375 | E108: CINTA ESTERILIZACIÓN | F108: CINTA ESTERILIZACIÓN 3M COMPLY AUTOCLAVE 12 MM X 55 M 42 ROLLOS | G108: 6842 | H108: 545000
A109: http://www.mercadopublico.cl/TiendaFicha/Ficha?idProducto= | B109: 1266383 | C109: http://www.mercadopublico.cl/TiendaFicha/Ficha?idProducto=1266383 | D109: 1266383 | E109: CINTA ESTERILIZACIÓN | F109: CINTA ESTERILIZACIÓN 3M COMPLY OXIDO DE ETILENO 19 MM X 54,6 M 1224-6 ROLLO | G109: 6842 | H109: 550000
A110: http://www.mercadopublico.cl/TiendaFicha/Ficha?idProducto= | B110: 1266378 | C110: http://www.mercadopublico.cl/TiendaFicha/Ficha?idProducto=1266378 | D110: 1266378 | E110: CINTA ESTERILIZACIÓN | F110: CINTA ESTERILIZACIÓN 3M COMPLY EMULADOR VAPOR CLASE 6 CICLO DE PRIONES 250 UNIDADES | G110: 6842 | H110: 555000
A111: http://www.mercadopublico.cl/TiendaFicha/Ficha?idProducto= | B111: 1322882 | C111: http://www.mercadopublico.cl/TiendaFicha/Ficha?idProducto=1322882 | D111: 1322882 | E111: CINTA ESTERILIZACIÓN | F111: CINTA ESTERILIZACIÓN 3M ETIQUETA INCHEQUE ROJO 12 UNIDADES | G111: 6842 | H111: 560000
A112: http://www.mercadopublico.cl/TiendaFicha/Ficha?idProducto= | B112: 1266379 | C112: http://www.mercadopublico.cl/TiendaFicha/Ficha?idProducto=1266379 | D112: 1266379 | E112: CINTA ESTERILIZACIÓN | F112: CINTA ESTERILIZACIÓN 3M COMPLY INTEGRADOR VAPOR 100 UNIDADES | G112: 6842 | H112: 565000
A113: http://www.mercadopublico.cl/TiendaFicha/Ficha?idProducto= | B113: 1266386 | C113: http://www.mercadopublico.cl/TiendaFicha/Ficha?idProducto=1266386 | D113: 1266386 | E113: CINTA ESTERILIZACIÓN | F113: CINTA ESTERILIZACIÓN 3M ETIQUETA INCHEQUE AZUL 12 ROLLOS | G113: 6842 | H113: 570000
A114: http://www.mercadopublico.cl/TiendaFicha/Ficha?idProducto= | B114: 1266372 | C114: http://www.mercadopublico.cl/TiendaFicha/Ficha?idProducto=1266372 | D114: 1266372 | E114: CINTA ESTERILIZACIÓN | F114: CINTA ESTERILIZACIÓN 3M BOWIE-DICK TEST 00130LF 50 UNIDADES | G114: 6842 | H114: 575000
A115: http://www.mercadopublico.cl/TiendaFicha/Ficha?idProducto= | B115: 1266382 | C115: http://www.mercadopublico.cl/TiendaFicha/Ficha?idProducto=1266382 | D115: 1266382 | E115: CINTA ESTERILIZACIÓN | F115: CINTA ESTERILIZACIÓN 3M COMPLY OXIDO DE ETILENO 19 MM X 54,6 M 1224-6 24 ROLLOS | G115: 6842 | H115: 580000
A116: http://www.mercadopublico.cl/TiendaFicha/Ficha?idProducto= | B116: 1266367 | C116: http://www.mercadopublico.cl/TiendaFicha/Ficha?idProducto=1266367 | D116: 1266367 | E116: CINTA ESTERILIZACIÓN | F116: CINTA ESTERILIZACIÓN 3M AUTOCLAVE 12 MM X 50 M 42 ROLLOS | G116: 6842 | H116: 585000
A117: http://www.mercadopublico.cl/TiendaFicha/Ficha?idProducto= | B117: 1266366 | C117: http://www.mercadopublico.cl/TiendaFicha/Ficha?idProducto=1266366 | D117: 1266366 | E117: CINTA ESTERILIZACIÓN | F117: CINTA ESTERILIZACIÓN 3M APLICADOR DE ETIQUETAS INCHEQUE UNIDAD | G117: 6842 | H117: 590000
A118: http://www.mercadopublico.cl/TiendaFicha/Ficha?idProducto= | B118: 1266371 | C118: http://www.mercadopublico.cl/TiendaFicha/Ficha?idProducto=1266371 | D118: 1266371 | E118: CINTA ESTERILIZACIÓN | F118: CINTA ESTERILIZACIÓN 3M AUTOCLAVE 18 MM X 55 M 28 ROLLOS | G118: 6842 | H118: 595000
A119: http://www.mercadopublico.cl/TiendaFicha/Ficha?idProducto= | B119: 1266377 | C119: http://www.mercadopublico.cl/TiendaFicha/Ficha?idProducto=1266377 | D119: 1266377 | E119: CINTA ESTERILIZACIÓN | F119: CINTA ESTERILIZACIÓN 3M COMPLY AUTOCLAVE 18 MM X 55 M ROLLO | G119: 6842 | H119: 600000
A120: http://www.mercadopublico.cl/TiendaFicha/Ficha?idProducto= | B120: 1266373 | C120: http://www.mercadopublico.cl/TiendaFicha/Ficha?idProducto=1266373 | D120: 1266373 | E120: CINTA ESTERILIZACIÓN | F120: CINTA ESTERILIZACIÓN 3M BOWIE-DICK TEST PACK 1233LF 30 UNIDADES | G120: 6842 | H120: 605000
A121: http://www.mercadopublico.cl/TiendaFicha/Ficha?idProducto= | B121: 1266380 | C121: http://www.mercadopublico.cl/TiendaFicha/Ficha?idProducto=1266380 | D121: 1266380 | E121: CINTA ESTERILIZACIÓN | F121: CINTA ESTERILIZACIÓN 3M COMPLY OXIDO DE ETILENO 12 MM X 54,6 M 1224-0 36 ROLLOS | G121: 6842 | H121: 610000
A122: http://www.mercadopublico.cl/TiendaFicha/Ficha?idProducto= | B122: 1266376 | C122: http://www.mercadopublico.cl/TiendaFicha/Ficha?idProducto=1266376 | D122: 1266376 | E122: CINTA ESTERILIZACIÓN | F122: CINTA ESTERILIZACIÓN 3M COMPLY AUTOCLAVE 18 MM X 55 M 28 ROLLOS | G122: 6842 | H122: 615000
A123: http://www.mercadopublico.cl/TiendaFicha/Ficha?idProducto= | B123: 1266381 | C123: http://www.mercadopublico.cl/TiendaFicha/Ficha?idProducto=1266381 | D123: 1266381 | E123: CINTA ESTERILIZACIÓN | F123: CINTA ESTERILIZACIÓN 3M COMPLY OXIDO DE ETILENO 12 MM X 54,6 M 1224-0 ROLLO | G123: 6842 | H123: 620000
A124: http://www.mercadopublico.cl/TiendaFicha/Ficha?idProducto= | B124: 1266368 | C124: http://www.mercadopublico.cl/TiendaFicha/Ficha?idProducto=1266368 | D124: 1266368 | E124: CINTA ESTERILIZACIÓN | F124: CINTA ESTERILIZACIÓN 3M AUTOCLAVE 12 MM X 50 M 72 ROLLOS | G124: 6842 | H124: 625000
A125: http://www.mercadopublico.cl/TiendaFicha/Ficha?idProducto= | B125: 1266385 | C125: http://www.mercadopublico.cl/TiendaFicha/Ficha?idProducto=1266385 | D125: 1266385 | E125: CINTA ESTERILIZACIÓN | F125: CINTA ESTERILIZACIÓN 3M COMPLY TIRAS INDICADORAS PARA VAPOR AUTOCLAVE MULTIPARAMETRO 240 TIRAS | G125: 6842 | H125: 630000
A126: http://www.mercadopublico.cl/TiendaFicha/Ficha?idProducto= | B126: 1266388 | C126: http://www.mercadopublico.cl/TiendaFicha/Ficha?idProducto=1266388 | D126: 1266388 | E126: CINTA ESTERILIZACIÓN | F126: CINTA ESTERILIZACIÓN 3M ETIQUETA INCHEQUE VERDE 12 ROLLOS | G126: 6842 | H126: 635000
A127: http://www.mercadopublico.cl/TiendaFicha/Ficha?idProducto= | B127: 1266482 | C127: http://www.mercadopublico.cl/TiendaFicha/Ficha?idProducto=1266482 | D127: 1266482 | E127: ELECTRODO | F127: ELECTRODO 3M MONITORIZACIÓN RED DOT CON BROCHE DE CARBONO 5 UNIDADES | G127: 6813 | H127: 640000
A128: http://www.mercadopublico.cl/TiendaFicha/Ficha?idProducto= | B128: 1266486 | C128: http://www.mercadopublico.cl/TiendaFicha/Ficha?idProducto=1266486 | D128: 1266486 | E128: ELECTRODO | F128: ELECTRODO 3M RED DOT MONOTORIZACIÓN BROCHE DE CARBONO 5 UNIDADES | G128: 6813 | H128: 645000
A129: http://www.mercadopublico.cl/TiendaFicha/Ficha?idProducto= | B129: 1322905 | C129: http://www.mercadopublico.cl/TiendaFicha/Ficha?idProducto=1322905 | D129: 1322905 | E129: ELECTRODO | F129: ELECTRODO 3M NEONATAL CON CABLE 3 UNIDADES | G129: 6813 | H129: 650000
A130: http://www.mercadopublico.cl/TiendaFicha/Ficha?idProducto= | B130: 1266484 | C130: =CONCATENATE(A130,B130) -> http://www.mercadopublico.cl/TiendaFicha/Ficha?idProducto=1266484 | D130: =HYPERLINK(C130,B130) -> 1266484 | E130: ELECTRODO | F130: ELECTRODO 3M NEONATAL CON CABLE 3 UNIDADES | G130: 6813 | H130: 655000
A131: http://www.mercadopublico.cl/TiendaFicha/Ficha?idProducto= | B131: 1266489 | C131: http://www.mercadopublico.cl/TiendaFicha/Ficha?idProducto=1266489 | D131: 1266489 | E131: ELECTRODO | F131: ELECTRODO 3M RED DOT USO GENERAL 2230 50 UNIDADES | G131: 6813 | H131: 660000
A132: http://www.mercadopublico.cl/TiendaFicha/Ficha?idProducto= | B132: 1266483 | C132: http://www.mercadopublico.cl/TiendaFicha/Ficha?idProducto=1266483 | D132: 1266483 | E132: ELECTRODO | F132: ELECTRODO 3M MULTIUSO 50 UNIDADES | G132: 6813 | H132: =H131+5000 -> 665000
A133: http://www.mercadopublico.cl/TiendaFicha/Ficha?idProducto= | B133: 1266490 | C133: http://www.mercadopublico.cl/TiendaFicha/Ficha?idProducto=1266490 | D133: 1266490 | E133: ELECTRODO | F133: ELECTRODO 3M RED DOT USO PEDIÁTRICO DE CINTA MICROPORE 2248 50 UNIDADES | G133: 6813 | H133: 670000
A134: http://www.mercadopublico.cl/TiendaFicha/Ficha?idProducto= | B134: 1266485 | C134: http://www.mercadopublico.cl/TiendaFicha/Ficha?idProducto=1266485 | D134: 1266485 | E134: ELECTRODO | F134: ELECTRODO 3M RED DOT CON SOPORTE DE CINTA MICROPORE 2249 50 UNIDADES | G134: 6813 | H134: 675000
A135: http://www.mercadopublico.cl/TiendaFicha/Ficha?idProducto= | B135: 1266493 | C135: http://www.mercadopublico.cl/TiendaFicha/Ficha?idProducto=1266493 | D135: 1266493 | E135: ELECTRODO | F135: ELECTRODO 3M USO GENERAL 50 UNIDADES | G135: 6813 | H135: 680000
A136: http://www.mercadopublico.cl/TiendaFicha/Ficha?idProducto= | B136: 1266492 | C136: http://www.mercadopublico.cl/TiendaFicha/Ficha?idProducto=1266492 | D136: 1266492 | E136: ELECTRODO | F136: ELECTRODO 3M TEST DE ESFUERZO ADULTO 5,1 CM DE DIAMETRO 2259 50 UNIDADES | G136: 6813 | H136: 685000
A137: http://www.mercadopublico.cl/TiendaFicha/Ficha?idProducto= | B137: 1266488 | C137: http://www.mercadopublico.cl/TiendaFicha/Ficha?idProducto=1266488 | D137: 1266488 | E137: ELECTRODO | F137: ELECTRODO 3M RED DOT PARA ECG 2330 40 UNIDADES | G137: 6813 | H137: 690000
A138: http://www.mercadopublico.cl/TiendaFicha/Ficha?idProducto= | B138: 1266481 | C138: http://www.mercadopublico.cl/TiendaFicha/Ficha?idProducto=1266481 | D138: 1266481 | E138: ELECTRODO | F138: ELECTRODO 3M MONITOREO PEDIATRICO 4.4 CM DE DIAMETRO 2248 50 UNIDADES | G138: 6813 | H138: 695000
A139: http://www.mercadopublico.cl/TiendaFicha/Ficha?idProducto= | B139: 1266487 | C139: http://www.mercadopublico.cl/TiendaFicha/Ficha?idProducto=1266487 | D139: 1266487 | E139: ELECTRODO | F139: ELECTRODO 3M RED DOT MULTIUSO 2228 50 UNIDADES | G139: 6813 | H139: 700000
A140: http://www.mercadopublico.cl/TiendaFicha/Ficha?idProducto= | B140: 1266535 | C140: http://www.mercadopublico.cl/TiendaFicha/Ficha?idProducto=1266535 | D140: 1266535 | E140: ENGRAPADORA | F140: ENGRAPADORA 3M PIEL PRECISE 35W 6 UNIDADES | G140: 6861 | H140: 705000
A141: http://www.mercadopublico.cl/TiendaFicha/Ficha?idProducto= | B141: 1266621 | C141: http://www.mercadopublico.cl/TiendaFicha/Ficha?idProducto=1266621 | D141: 1266621 | E141: ENVOLTURA | F141: ENVOLTURA 3M CAMPO QUIRURGICO DE INCISIÓN YODADO IOBAN 6650EZ, 60 X 45 CM 10 UNIDADES | G141: 6825 | H141: 710000
A142: http://www.mercadopublico.cl/TiendaFicha/Ficha?idProducto= | B142: 1266626 | C142: http://www.mercadopublico.cl/TiendaFicha/Ficha?idProducto=1266626 | D142: 1266626 | E142: ENVOLTURA | F142: ENVOLTURA 3M CAMPO QUIRURGICO STERI-DRAPE 2037, 35 X 28 CM 10 UNIDADES | G142: 6825 | H142: 715000
A143: http://www.mercadopublico.cl/TiendaFicha/Ficha?idProducto= | B143: 1299601 | C143: http://www.mercadopublico.cl/TiendaFicha/Ficha?idProducto=1299601 | D143: 1299601 | E143: ENVOLTURA | F143: ENVOLTURA 3M PLACA UNIVERSAL DIVIDIDA 9160 100 UNIDADES | G143: 6825 | H143: 720000
A144: http://www.mercadopublico.cl/TiendaFicha/Ficha?idProducto= | B144: 1266616 | C144: http://www.mercadopublico.cl/TiendaFicha/Ficha?idProducto=1266616 | D144: 1266616 | E144: ENVOLTURA | F144: ENVOLTURA 3M CAMPO QUIRURGICO DE INCISION 90 X 60 CM SERIE 2000 10 UNIDADES | G144: 6825 | H144: 725000
A145: http://www.mercadopublico.cl/TiendaFicha/Ficha?idProducto= | B145: 1266620 | C145: http://www.mercadopublico.cl/TiendaFicha/Ficha?idProducto=1266620 | D145: 1266620 | E145: ENVOLTURA | F145: ENVOLTURA 3M CAMPO QUIRURGICO DE INCISIÓN YODADO IOBAN 6648EZ, 60 X 60 CM 10 UNIDADES | G145: 6825 | H145: 730000
A146: http://www.mercadopublico.cl/TiendaFicha/Ficha?idProducto= | B146: 1266619 | C146: http://www.mercadopublico.cl/TiendaFicha/Ficha?idProducto=1266619 | D146: 1266619 | E146: ENVOLTURA | F146: ENVOLTURA 3M CAMPO QUIRURGICO DE INCISIÓN YODADO IOBAN 6640EZ, 35 X 35 CM 10 UNIDADES | G146: 6825 | H146: 735000
A147: http://www.mercadopublico.cl/TiendaFicha/Ficha?idProducto= | B147: 1266644 | C147: http://www.mercadopublico.cl/TiendaFicha/Ficha?idProducto=1266644 | D147: 1266644 | E147: ENVOLTURA | F147: ENVOLTURA 3M MIXTO SIN FUELLE 7,5 CM X 200 M 4 ROLLOS | G147: 6825 | H147: 740000
A148: http://www.mercadopublico.cl/TiendaFicha/Ficha?idProducto= | B148: 1266643 | C148: http://www.mercadopublico.cl/TiendaFicha/Ficha?idProducto=1266643 | D148: 1266643 | E148: ENVOLTURA | F148: ENVOLTURA 3M MIXTO SIN FUELLE 5 CM X 200 M 6 ROLLOS | G148: 6825 | H148: 745000
A149: http://www.mercadopublico.cl/TiendaFicha/Ficha?idProducto= | B149: 1266625 | C149: http://www.mercadopublico.cl/TiendaFicha/Ficha?idProducto=1266625 | D149: 1266625 | E149: ENVOLTURA | F149: ENVOLTURA 3M CAMPO QUIRURGICO STERI-DRAPE 1050, 60 X 45 CM 10 UNIDADES | G149: 6825 | H149: 750000
A150: http://www.mercadopublico.cl/TiendaFicha/Ficha?idProducto= | B150: 1266623 | C150: http://www.mercadopublico.cl/TiendaFicha/Ficha?idProducto=1266623 | D150: 1266623 | E150: ENVOLTURA | F150: ENVOLTURA 3M CAMPO QUIRURGICO STERI-DRAPE 1016, 50 X 60 CM 10 UNIDADES | G150: 6825 | H150: 755000
A151: http://www.mercadopublico.cl/TiendaFicha/Ficha?idProducto= | B151: 1266647 | C151: http://www.mercadopublico.cl/TiendaFicha/Ficha?idProducto=1266647 | D151: 1266647 | E151: ENVOLTURA | F151: ENVOLTURA 3M PLACA UNIVERSAL ELECTROCIRUGIA STANDARD 100 UNIDADES | G151: 6825 | H151: 760000
A152: http://www.mercadopublico.cl/TiendaFicha/Ficha?idProducto= | B152: 1266618 | C152: http://www.mercadopublico.cl/TiendaFicha/Ficha?idProducto=1266618 | D152: 1266618 | E152: ENVOLTURA | F152: ENVOLTURA 3M CAMPO QUIRURGICO DE INCISIÓN YODADO IOBAN 6619, 328 X 254 CM 5 UNIDADES | G152: 6825 | H152: 765000
A153: http://www.mercadopublico.cl/TiendaFicha/Ficha?idProducto= | B153: 1266629 | C153: http://www.mercadopublico.cl/TiendaFicha/Ficha?idProducto=1266629 | D153: 1266629 | E153: ENVOLTURA | F153: ENVOLTURA 3M CAMPO QUIRURGICO STERI-DRAPE 2050, 60 X 60 CM 10 UNIDADES | G153: 6825 | H153: 770000
A154: http://www.mercadopublico.cl/TiendaFicha/Ficha?idProducto= | B154: 1266617 | C154: http://www.mercadopublico.cl/TiendaFicha/Ficha?idProducto=1266617 | D154: 1266617 | E154: ENVOLTURA | F154: ENVOLTURA 3M CAMPO QUIRURGICO DE INCISION 90X45 CM IOBAN II 10 UNIDADES | G154: 6825 | H154: 775000
A155: http://www.mercadopublico.cl/TiendaFicha/Ficha?idProducto= | B155: 1266624 | C155: http://www.mercadopublico.cl/TiendaFicha/Ficha?idProducto=1266624 | D155: 1266624 | E155: ENVOLTURA | F155: ENVOLTURA 3M CAMPO QUIRURGICO STERI-DRAPE 1040, 35 X 35 CM 10 UNIDADES | G155: 6825 | H155: 780000
A156: http://www.mercadopublico.cl/TiendaFicha/Ficha?idProducto= | B156: 1266645 | C156: http://www.mercadopublico.cl/TiendaFicha/Ficha?idProducto=1266645 | D156: 1266645 | E156: ENVOLTURA | F156: ENVOLTURA 3M PLACA UNIVERSAL DIVIDIDA CON CABLE 40 UNIDADES | G156: 6825 | H156: 785000
A157: http://www.mercadopublico.cl/TiendaFicha/Ficha?idProducto= | B157: 1266627 | C157: http://www.mercadopublico.cl/TiendaFicha/Ficha?idProducto=1266627 | D157: 1266627 | E157: ENVOLTURA | F157: ENVOLTURA 3M CAMPO QUIRURGICO STERI-DRAPE 2040, 45 X 28 CM 10 UNIDADES | G157: 6825 | H157: 790000
A158: http://www.mercadopublico.cl/TiendaFicha/Ficha?idProducto= | B158: 1266628 | C158: http://www.mercadopublico.cl/TiendaFicha/Ficha?idProducto=1266628 | D158: 1266628 | E158: ENVOLTURA | F158: ENVOLTURA 3M CAMPO QUIRURGICO STERI-DRAPE 2045, 50 X 45 CM 10 UNIDADES | G158: 6825 | H158: 795000
A159: http://www.mercadopublico.cl/TiendaFicha/Ficha?idProducto= | B159: 1266622 | C159: http://www.mercadopublico.cl/TiendaFicha/Ficha?idProducto=1266622 | D159: 1266622 | E159: ENVOLTURA | F159: ENVOLTURA 3M CAMPO QUIRURGICO STERI-DRAPE 1015, 130 X 120 CM 10 UNIDADES | G159: 6825 | H159: 800000
A160: http://www.mercadopublico.cl/TiendaFicha/Ficha?idProducto= | B160: 1266646 | C160: http://www.mercadopublico.cl/TiendaFicha/Ficha?idProducto=1266646 | D160: 1266646 | E160: ENVOLTURA | F160: ENVOLTURA 3M PLACA UNIVERSAL ELECTROCIRUGIA DIVIDIDA 200 UNIDADES | G160: 6825 | H160: 805000
A161: http://www.mercadopublico.cl/TiendaFicha/Ficha?idProducto= | B161: 1266682 | C161: http://www.mercadopublico.cl/TiendaFicha/Ficha?idProducto=1266682 | D161: 1266682 | E161: EQUIPO AUTOCLAVE | F161: EQUIPO AUTOCLAVE 3M ATTEST INCUBADORA 290 DE LECTURA RAPIDA UNIDAD | G161: 6828 | H161: 810000
A162: http://www.mercadopublico.cl/TiendaFicha/Ficha?idProducto= | B162: 1266746 | C162: http://www.mercadopublico.cl/TiendaFicha/Ficha?idProducto=1266746 | D162: 1266746 | E162: ESTETOSCOPIO | F162: ESTETOSCOPIO LITTMANN MASTER CLASICO II (PAR OLIVAS) 2634 3 UNIDADES | G162: 6863 | H162: 815000
A163: http://www.mercadopublico.cl/TiendaFicha/Ficha?idProducto= | B163: 1266741 | C163: http://www.mercadopublico.cl/TiendaFicha/Ficha?idProducto=1266741 | D163: 1266741 | E163: ESTETOSCOPIO | F163: ESTETOSCOPIO LITTMANN MASTER CLASICO II (PAR OLIVAS) 2146 3 UNIDADES | G163: 6863 | H163: 820000
A164: http://www.mercadopublico.cl/TiendaFicha/Ficha?idProducto= | B164: 1266724 | C164: http://www.mercadopublico.cl/TiendaFicha/Ficha?idProducto=1266724 | D164: 1266724 | E164: ESTETOSCOPIO | F164: ESTETOSCOPIO LITTMANN CLASICO II S.E. (PAR OLIVAS) 2210 3 UNIDADES | G164: 6863 | H164: 825000
A165: http://www.mercadopublico.cl/TiendaFicha/Ficha?idProducto= | B165: 1379876 | C165: http://www.mercadopublico.cl/TiendaFicha/Ficha?idProducto=1379876 | D165: 1379876 | E165: ESTETOSCOPIO | F165: ESTETOSCOPIO LITTMANN FONENDOSCOPIO CLASICO II NEGRO 2201 3 UNIDADES | G165: 6863 | H165: 830000
A166: http://www.mercadopublico.cl/TiendaFicha/Ficha?idProducto= | B166: 1379765 | C166: http://www.mercadopublico.cl/TiendaFicha/Ficha?idProducto=1379765 | D166: 1379765 | E166: ESTETOSCOPIO | F166: ESTETOSCOPIO LITTMANN FONENDOSCOPIO CLASICO III COLOR LAVANDA UNIDAD | G166: 6863 | H166: 835000
A167: http://www.mercadopublico.cl/TiendaFicha/Ficha?idProducto= | B167: 1379764 | C167: http://www.mercadopublico.cl/TiendaFicha/Ficha?idProducto=1379764 | D167: 1379764 | E167: ESTETOSCOPIO | F167: ESTETOSCOPIO LITTMANN FONENDOSCOPIO CLASICO III COLOR FRAMBUESA UNIDAD | G167: 6863 | H167: 840000
A168: http://www.mercadopublico.cl/TiendaFicha/Ficha?idProducto= | B168: 1512715 | C168: http://www.mercadopublico.cl/TiendaFicha/Ficha?idProducto=1512715 | D168: 1512715 | E168: ESTETOSCOPIO | F168: ESTETOSCOPIO LITTMANN CLASICO III FRAMBUESA ARCO IRIS 5806 UNIDAD | G168: 6863 | H168: 845000
A169: http://www.mercadopublico.cl/TiendaFicha/Ficha?idProducto= | B169: 1266755 | C169: http://www.mercadopublico.cl/TiendaFicha/Ficha?idProducto=1266755 | D169: 1266755 | E169: ESTETOSCOPIO | F169: ESTETOSCOPIO LITTMANN PEDIATRICO (PAR OLIVAS) 2153 3 UNIDADES | G169: 6863 | H169: 850000
A170: http://www.mercadopublico.cl/TiendaFicha/Ficha?idProducto= | B170: 1266751 | C170: http://www.mercadopublico.cl/TiendaFicha/Ficha?idProducto=1266751 | D170: 1266751 | E170: ESTETOSCOPIO | F170: ESTETOSCOPIO LITTMANN PEDIATRICO (PAR OLIVAS) 2113R 3 UNIDADES | G170: 6863 | H170: 855000
A171: http://www.mercadopublico.cl/TiendaFicha/Ficha?idProducto= | B171: 1266709 | C171: http://www.mercadopublico.cl/TiendaFicha/Ficha?idProducto=1266709 | D171: 1266709 | E171: ESTETOSCOPIO | F171: ESTETOSCOPIO LITTMANN CARDIOLOGICO III (PAR OLIVAS) 3130 3 UNIDADES | G171: 6863 | H171: 860000
A172: http://www.mercadopublico.cl/TiendaFicha/Ficha?idProducto= | B172: 1266747 | C172: http://www.mercadopublico.cl/TiendaFicha/Ficha?idProducto=1266747 | D172: 1266747 | E172: ESTETOSCOPIO | F172: ESTETOSCOPIO LITTMANN MASTER CLASSIC II (PAR OLIVAS) 2143 3 UNIDADES | G172: 6863 | H172: 865000
A173: http://www.mercadopublico.cl/TiendaFicha/Ficha?idProducto= | B173: 1266740 | C173: http://www.mercadopublico.cl/TiendaFicha/Ficha?idProducto=1266740 | D173: 1266740 | E173: ESTETOSCOPIO | F173: ESTETOSCOPIO LITTMANN MASTER CLASICO II (PAR OLIVAS) 2144L 3 UNIDADES | G173: 6863 | H173: 870000
A174: http://www.mercadopublico.cl/TiendaFicha/Ficha?idProducto= | B174: 1266754 | C174: http://www.mercadopublico.cl/TiendaFicha/Ficha?idProducto=1266754 | D174: 1266754 | E174: ESTETOSCOPIO | F174: ESTETOSCOPIO LITTMANN PEDIATRICO (PAR OLIVAS) 2123 3 UNIDADES | G174: 6863 | H174: 875000
A175: http://www.mercadopublico.cl/TiendaFicha/Ficha?idProducto= | B175: 1266715 | C175: http://www.mercadopublico.cl/TiendaFicha/Ficha?idProducto=1266715 | D175: 1266715 | E175: ESTETOSCOPIO | F175: ESTETOSCOPIO LITTMANN CLASICO II (PAR OLIVAS) 2209 3 UNIDADES | G175: 6863 | H175: 880000
A176: http://www.mercadopublico.cl/TiendaFicha/Ficha?idProducto= | B176: 1387179 | C176: http://www.mercadopublico.cl/TiendaFicha/Ficha?idProducto=1387179 | D176: 1387179 | E176: ESTETOSCOPIO | F176: ESTETOSCOPIO LITTMANN FONENDOSCOPIO CLASICO III COLOR SMOKE FINISH UNIDAD | G176: 6863 | H176: 885000
A177: http://www.mercadopublico.cl/TiendaFicha/Ficha?idProducto= | B177: 1379767 | C177: http://www.mercadopublico.cl/TiendaFicha/Ficha?idProducto=1379767 | D177: 1379767 | E177: ESTETOSCOPIO | F177: ESTETOSCOPIO LITTMANN FONENDOSCOPIO CLASICO III COLOR TURQUESA UNIDAD | G177: 6863 | H177: 890000
A178: http://www.mercadopublico.cl/TiendaFicha/Ficha?idProducto= | B178: 1387180 | C178: http://www.mercadopublico.cl/TiendaFicha/Ficha?idProducto=1387180 | D178: 1387180 | E178: ESTETOSCOPIO | F178: ESTETOSCOPIO LITTMANN FONENEDOSCOPIO CLASICO III COLOR CHOCOLATE Y CAMPANA COLOR COBRE UNIDAD | G178: 6863 | H178: 895000
A179: http://www.mercadopublico.cl/TiendaFicha/Ficha?idProducto= | B179: 1379766 | C179: http://www.mercadopublico.cl/TiendaFicha/Ficha?idProducto=1379766 | D179: 1379766 | E179: ESTETOSCOPIO | F179: ESTETOSCOPIO LITTMANN FONENDOSCOPIO CLASICO III COLOR CIRUELA UNIDAD | G179: 6863 | H179: 900000
A180: http://www.mercadopublico.cl/TiendaFicha/Ficha?idProducto= | B180: 1266739 | C180: http://www.mercadopublico.cl/TiendaFicha/Ficha?idProducto=1266739 | D180: 1266739 | E180: ESTETOSCOPIO | F180: ESTETOSCOPIO LITTMANN MASTER CLASICO II (PAR OLIVAS) 2141 3 UNIDADES | G180: 6863 | H180: 905000
A181: http://www.mercadopublico.cl/TiendaFicha/Ficha?idProducto= | B181: 1379745 | C181: http://www.mercadopublico.cl/TiendaFicha/Ficha?idProducto=1379745 | D181: 1379745 | E181: ESTETOSCOPIO | F181: ESTETOSCOPIO LITTMANN FONENDOSCOPIO CLASICO III COLOR LIMA LIMON UNIDAD | G181: 6863 | H181: 910000
A182: http://www.mercadopublico.cl/TiendaFicha/Ficha?idProducto= | B182: 1379743 | C182: http://www.mercadopublico.cl/TiendaFicha/Ficha?idProducto=1379743 | D182: 1379743 | E182: ESTETOSCOPIO | F182: ESTETOSCOPIO LITTMANN FONENDOSCOPIO CLASICO III COLOR NEGRO UNIDAD | G182: 6863 | H182: 915000
A183: http://www.mercadopublico.cl/TiendaFicha/Ficha?idProducto= | B183: 1379878 | C183: http://www.mercadopublico.cl/TiendaFicha/Ficha?idProducto=1379878 | D183: 1379878 | E183: ESTETOSCOPIO | F183: ESTETOSCOPIO LITTMANN FONENDOSCOPIO CLASICO III AZUL CARIBE 3 UNIDADES | G183: 6863 | H183: 920000
A184: http://www.mercadopublico.cl/TiendaFicha/Ficha?idProducto= | B184: 1266734 | C184: http://www.mercadopublico.cl/TiendaFicha/Ficha?idProducto=1266734 | D184: 1266734 | E184: ESTETOSCOPIO | F184: ESTETOSCOPIO LITTMANN ELECTRONICO BLUETOOTH 3200N UNIDAD | G184: 6863 | H184: 925000
A185: http://www.mercadopublico.cl/TiendaFicha/Ficha?idProducto= | B185: 1379739 | C185: http://www.mercadopublico.cl/TiendaFicha/Ficha?idProducto=1379739 | D185: 1379739 | E185: ESTETOSCOPIO | F185: ESTETOSCOPIO LITTMANN FONENDOSCOPIO CLASICO III COLOR AZUL MARINO UNIDAD | G185: 6863 | H185: 930000
A186: http://www.mercadopublico.cl/TiendaFicha/Ficha?idProducto= | B186: 1299660 | C186: http://www.mercadopublico.cl/TiendaFicha/Ficha?idProducto=1299660 | D186: 1299660 | E186: ESTETOSCOPIO | F186: ESTETOSCOPIO LITTMANN PEDIATRICO (PAR OLIVAS) 2113B UNIDAD | G186: 6863 | H186: 935000
A187: http://www.mercadopublico.cl/TiendaFicha/Ficha?idProducto= | B187: 1266736 | C187: http://www.mercadopublico.cl/TiendaFicha/Ficha?idProducto=1266736 | D187: 1266736 | E187: ESTETOSCOPIO | F187: ESTETOSCOPIO 3M LITTMANN MASTER CARDIOLOGICO (PAR OLIVAS) 2161 3 UNIDADES | G187: 6863 | H187: 940000
A188: http://www.mercadopublico.cl/TiendaFicha/Ficha?idProducto= | B188: 1266735 | C188: http://www.mercadopublico.cl/TiendaFicha/Ficha?idProducto=1266735 | D188: 1266735 | E188: ESTETOSCOPIO | F188: ESTETOSCOPIO 3M LITTMANN MASTER CARDIOLOGICO (PAR O LIVAS) 2160 3 UNIDADES | G188: 6863 | H188: 945000
A189: http://www.mercadopublico.cl/TiendaFicha/Ficha?idProducto= | B189: 1266748 | C189: http://www.mercadopublico.cl/TiendaFicha/Ficha?idProducto=1266748 | D189: 1266748 | E189: ESTETOSCOPIO | F189: ESTETOSCOPIO 3M LITTMANN NEONATOLOGICO (PAR OLIVAS) 2114B 3 UNIDADES | G189: 6863 | H189: 950000
A190: http://www.mercadopublico.cl/TiendaFicha/Ficha?idProducto= | B190: 1266749 | C190: http://www.mercadopublico.cl/TiendaFicha/Ficha?idProducto=1266749 | D190: 1266749 | E190: ESTETOSCOPIO | F190: ESTETOSCOPIO 3M LITTMANN NEONATOLOGICO (PAR OLIVAS) 2157 3 UNIDADES | G190: 6863 | H190: 955000
A191: http://www.mercadopublico.cl/TiendaFicha/Ficha?idProducto= | B191: 1266744 | C191: http://www.mercadopublico.cl/TiendaFicha/Ficha?idProducto=1266744 | D191: 1266744 | E191: ESTETOSCOPIO | F191: ESTETOSCOPIO 3M LITTMANN MASTER CLASICO II (PAR OLIVAS) 2632 3 UNIDADES | G191: 6863 | H191: 960000
A192: http://www.mercadopublico.cl/TiendaFicha/Ficha?idProducto= | B192: 1266753 | C192: http://www.mercadopublico.cl/TiendaFicha/Ficha?idProducto=1266753 | D192: 1266753 | E192: ESTETOSCOPIO | F192: ESTETOSCOPIO 3M LITTMANN PEDIATRICO (PAR OLIVAS) 2122 3 UNIDADES | G192: 6863 | H192: 965000
A193: http://www.mercadopublico.cl/TiendaFicha/Ficha?idProducto= | B193: 1266732 | C193: http://www.mercadopublico.cl/TiendaFicha/Ficha?idProducto=1266732 | D193: 1266732 | E193: ESTETOSCOPIO | F193: ESTETOSCOPIO 3M LITTMANN CLASICO II S.E.(PAR OLIVAS) 2822 3 UNIDADES | G193: 6863 | H193: 970000
A194: http://www.mercadopublico.cl/TiendaFicha/Ficha?idProducto= | B194: 1266745 | C194: =CONCATENATE(A194,B194) -> http://www.mercadopublico.cl/TiendaFicha/Ficha?idProducto=1266745 | D194: =HYPERLINK(C194,B194) -> 1266745 | E194: ESTETOSCOPIO | F194: ESTETOSCOPIO 3M LITTMANN MASTER CLASICO II (PAR OLIVAS) 2633 3 UNIDADES | G194: 6863 | H194: 975000
A195: http://www.mercadopublico.cl/TiendaFicha/Ficha?idProducto= | B195: 1266750 | C195: http://www.mercadopublico.cl/TiendaFicha/Ficha?idProducto=1266750 | D195: 1266750 | E195: ESTETOSCOPIO | F195: ESTETOSCOPIO 3M LITTMANN PEDIATRICO (PAR OLIVAS) 2113B 3 UNIDADES | G195: 6863 | H195: 980000
A196: http://www.mercadopublico.cl/TiendaFicha/Ficha?idProducto= | B196: 1299686 | C196: http://www.mercadopublico.cl/TiendaFicha/Ficha?idProducto=1299686 | D196: 1299686 | E196: GASA | F196: GASA NEXCARE 15 X15 CM ESTERIL, NO ADHERENTE 6 UNIDADES | G196: 6872 | H196: =H195+5000 -> 985000
A197: http://www.mercadopublico.cl/TiendaFicha/Ficha?idProducto= | B197: 1266888 | C197: http://www.mercadopublico.cl/TiendaFicha/Ficha?idProducto=1266888 | D197: 1266888 | E197: HIDROGEL | F197: HIDROGEL 3M 91110 TEGADERM 15 GR UNIDAD | G197: 6879 | H197: 990000
A198: http://www.mercadopublico.cl/TiendaFicha/Ficha?idProducto= | B198: 1266887 | C198: http://www.mercadopublico.cl/TiendaFicha/Ficha?idProducto=1266887 | D198: 1266887 | E198: HIDROGEL | F198: HIDROGEL 3M 91110 TEGADERM 15 GR 10 UNIDADES | G198: 6879 | H198: 995000
A199: http://www.mercadopublico.cl/TiendaFicha/Ficha?idProducto= | B199: 1266960 | C199: http://www.mercadopublico.cl/TiendaFicha/Ficha?idProducto=1266960 | D199: 1266960 | E199: KIT DE ESTERILIZACIÓN | F199: KIT DE ESTERILIZACIÓN 3M CLEAN-TRACE LUMINOMETRO NGI HOSPITAL UNIDAD | G199: 6829 | H199: 1000000
A200: http://www.mercadopublico.cl/TiendaFicha/Ficha?idProducto= | B200: 1266956 | C200: http://www.mercadopublico.cl/TiendaFicha/Ficha?idProducto=1266956 | D200: 1266956 | E200: KIT DE ESTERILIZACIÓN | F200: KIT DE ESTERILIZACIÓN 3M ATTEST CONTROL BIOLÓGICO LECTURA RÁPIDA 1298F 25 UNIDADES | G200: 6829 | H200: 1005000
... 72 more rows

Sheet MATERIALES
A1: MATERIALES DE SUTURA Y CURACION - CONSUMO 1a Cirugia | G1: MATERIALES DE SUTURA Y CURACION - CONSUMO 1a Cirugia
A2: CODIGO | B2: DETALLE | C2: CANTIDAD | D2: VR UNIT | E2: VR TOTAL | G2: CODIGO | H2: DETALLE | I2: CANTIDAD | J2: VR UNIT | K2: VR TOTAL
A3: 1266151 | B3: =VLOOKUP(A3,INSUMOS,3,FALSE) -> APÓSITO 3M ALGINATO DE CALCIO EN PLACA TEGADERM 90112 10 X 10 CM 10 UNIDADES | C3: 0.5 | D3: 55000 | E3: =D3*C3 -> 27500 | G3: 1266164 | H3: =VLOOKUP(G3,INSUMOS,3,FALSE) -> APÓSITO 3M HIDROCOLOIDE THIN OVALADO TEGADERM 90023 10 X 12 CM 10 UNIDADES | I3: 0.5 | J3: 75000 | K3: =J3*I3 -> 37500
A4: 1266482 | B4: =IF(A4="","",VLOOKUP(A4,INSUMOS,3,FALSE)) -> ELECTRODO 3M MONITORIZACIÓN RED DOT CON BROCHE DE CARBONO 5 UNIDADES | C4: 0.2 | D4: 640000 | E4: =D4*C4 -> 128000 | G4: 1266161 | H4: =IF(G4="","",VLOOKUP(G4,INSUMOS,3,FALSE)) -> APÓSITO 3M HIDROCOLOIDE OVALADO TEGADERM STANDARD 90001 7 X 9 CM 5 UNIDADES | I4: 1 | J4: 50000 | K4: =J4*I4 -> 50000
A5: 1266482 | B5: ELECTRODO 3M MONITORIZACIÓN RED DOT CON BROCHE DE CARBONO 5 UNIDADES | E5: 0 | K5: =J5*I5 -> 0
E6: 0 | J6: =IF(G6=0,0,VLOOKUP(G6,INSUMOS,5,FALSE)) -> 0 | K6: 0
E7: 0 | J7: 0 | K7: 0
E8: 0 | J8: 0 | K8: 0
E9: 0 | J9: 0 | K9: 0
E10: 0 | J10: 0 | K10: 0
E11: 0 | J11: 0 | K11: 0
E12: 0 | J12: 0 | K12: 0
E13: 0 | J13: 0 | K13: 0
C14: TOTAL PRIMERA CIRUGIA | E14: =SUM(E3:E13) -> 155500 | I14: TOTAL SEGUNDA CIRUGIA | K14: =SUM(K3:K13) -> 87500
A16: CODIGO | B16: PROCEDIMIENTO | C16: UVR | D16: VR. MATERIALES | F16: DETALLE
A17: ='INFORMACION '!C10 -> 28500 | B17: =VLOOKUP(A17,ISS,2,FALSE) -> EXTRACCIÓN DE TRACTOR CEFALICO [HALO CHALECO] SOD | C17: =VLOOKUP(A17,ISS,3,FALSE) -> 35 | D17: =IF(C17>=170,E14,VLOOKUP(C17,MATERIALES,2,TRUE)) -> 32005 | F17: =CONCATENATE("Materiales ",B17) -> Materiales EXTRACCIÓN DE TRACTOR CEFALICO [HALO CHALECO] SOD
A18: ='INFORMACION '!C13 -> 373301 | B18: =IF(A18="","",VLOOKUP(A18,ISS,2,FALSE)) -> ESCISION DE TUMOR DEL CORAZON (75) | C18: =IF(A18="","",VLOOKUP(A18,ISS,3,FALSE)) -> 400 | D18: =IF(C18>=170,K14,VLOOKUP(C18,MATERIALES,2,TRUE)) -> 87500 | F18: =CONCATENATE("Materiales ",B18) -> Materiales ESCISION DE TUMOR DEL CORAZON (75)

Sheet Facturacion
A1: CLINICA LA PELIGROSA - NIT 819.000.001
A2: FACTURA DE SERVICIO Nº | E2: Fecha:
A4: Cliente: | E4: RUT:
A5: Direccion | C5: Telefono: | E5: Contacto:
A6: Paciente: | C6: Identificacion: | E6: Autorizacion:
A7: PROCEDIMIENTO REALIZADOS | C7: EXTRACCIÓN DE TRACTOR CEFALICO [HALO CHALECO] SOD
A9: LIQUIDACION DE SERVICIOS
A10: Derecho de Sala
A11: Honorarios Cirujanos
A12: Honorarioan Anestesiologo
A13: Honorarios Ayudantes
A14: Materiales
A16: TOTAL FACTURADO | E16: =SUM(E10:F14) -> 0
A18: Firmado Recibido | C18: Firma Paciente | E18: Autorizado

Sheet Facturacion Multiple
A1: CLINICA LA PELIGROSA - NIT 819.000.001
A2: FACTURA DE SERVICIO Nº | E2: Fecha:
A4: Cliente: | E4: RUT:
A5: Direccion | C5: Telefono: | E5: Contacto:
A6: Paciente: | C6: Identificacion: | E6: Autorizacion:
A7: CIRUGIA No 1
A8: CIRUGIA No 2
A10: LIQUIDACION DE SERVICIOS
A11: Derecho de Sala Primera Cirugia
A12: Derecho de Sala Segunda Cirugia
A13: Honorarios Cirujano Principal
A14: Honorarios Segunda Cirugia
A15: Honorario Anestesia Primera Cirugia
A16: Honorario Anestesia Segunda Cirugia
A17: Honorarios Ayudantes Primera Cirugia
A18: Honorarios AyudantesSegunda Cirugia
A19: Materiales Primera Cirugia
A20: Materiales Segunda Cirugia
A21: Sala | E21: =SUM(E11:F20) -> 0
A23: TOTAL FACTURADO
A25: Firmado Recibido | C25: Firma Paciente | E25: Autorizado

Sheet Hoja1
A1: 2 | B1: 2 | C1: 2 | D1: NO | E1: 352200 | F1: =VLOOKUP(E1,ISS,2,FALSE) -> REEMPLAZO DE VALVULA MITRAL CON PROTESIS O BIOPROTESIS (AUTOLOGA O HETEROLOGA) SOD | G1: =VLOOKUP(E1,ISS,3,FALSE) -> 450 | H1: 373301 | I1: =IF(A1=1,"SOLO TIENE REGISTRADA UNA(1) CX",VLOOKUP(H1,ISS,2,FALSE)) -> ESCISION DE TUMOR DEL CORAZON (75) | J1: =IF(G1<VLOOKUP(H1,ISS,3,FALSE),"LA PRIMERA CX ES DE MENOR VALOR, CORREGIR EL ORDEN",VLOOKUP(H1,ISS,3,FALSE)) -> 400
A2: 1 | B2: 2 | C2: 1 | D2: SI | E2: 33100 | F2: =VLOOKUP(E2,ISS,2,FALSE) -> PUNCION LUMBAR SOD * | G2: =VLOOKUP(E2,ISS,3,FALSE) -> 40 | H2: 39001 | I2: =IF(A2=1,"SOLO TIENE REGISTRADA UNA(1) CX",VLOOKUP(H2,ISS,2,FALSE)) -> SOLO TIENE REGISTRADA UNA(1) CX | J2: =IF(G2<VLOOKUP(H2,ISS,3,FALSE),"LA PRIMERA CX ES DE MENOR VALOR, CORREGIR EL ORDEN",VLOOKUP(H2,ISS,3,FALSE)) -> LA PRIMERA CX ES DE MENOR VALOR, CORREGIR EL ORDEN

Sheet Hoja4

Sheet Hoja3
A1: CODIGO | B1: DETALLE | C1: UVR | D1: BILATERAL
A2: 383501 | B2: RESECCION CON ANASTOMOSIS EN VASOS ESPINALES, SEGMENTO CERVICAL (77) | C2: 585 | E2: 824850 | F2: 1113547.5
A3: 373301 | B3: ESCISION DE TUMOR DEL CORAZON (75) | C3: 400 | D3: NO
